Cogmind - Beta 11 @@@ ROGUE MODE // 2022.04.23 @ 15:18:59 Player: PlasticHeart Result: Escaped! Performance ------------- Evolutions (9) 4500 Regions Visited (41) 8200 Robots Destroyed (278) 1390 Value Destroyed (8014) 8014 Prototype IDs (99) 1980 Alien Tech Used (9) 1800 Bonus (16064) 16064 TOTAL SCORE: 41948 Bonus ------- High Alert Combat Kills 223 Follower Combat Kills 4108 Met Data Miner 300 Met Imprinter 300 Met Zhirov 300 Built Enhanced Grunts 300 A7 Reached Mainframe 300 Met R17 at Cetus 500 Met R17 at Research 2000 Met MAIN.C 5000 Win 3000 Friendly Fire -267 Cogmind --------- Core Integrity 638/1600 Matter 41/300 Energy 84/100 System Corruption 19% Temperature Cool (10) Movement Hovering (48) Location To Epsilon Eridani Parts ------- > --- POWER (2) -------- (None) > --- PROPULSION (8) --- Combat Gravmag System Combat Linear Gravjet Combat Linear Gravjet Combat Linear Gravjet Combat Linear Gravjet > --- UTILITY (14) ----- Experimental Power Amplifier Large Storage Unit Femtoactuators Graphene Brace Experimental Focal Shield Experimental Force Field Advanced Hacking Suite Experimental System Purifier > --- WEAPON (2) ------- Impact Mace Impact Mace > --- INVENTORY (15) --- Improved Matter Compressor (300) Transdimensional Reconstructor Transdimensional Reconstructor Graviton Cannon Core Stripper Sigix Broadsword CR-A16's Pointy Stick Peak State ------------ > --- POWER ------------ Compact Particle Reactor Zero-point Reactor > --- PROPULSION ------- Combat Gravmag System Improved Antigrav System Improved Antigrav System Combat Linear Gravjet Combat Linear Gravjet Combat Linear Gravjet Combat Linear Gravjet > --- UTILITY ---------- Experimental Power Amplifier Large Storage Unit Advanced Signal Interpreter Advanced Kinecellerator Femtoactuators Experimental Phase Shifter Graphene Brace Experimental Focal Shield Experimental Force Field Point Defense Array Advanced Hacking Suite Advanced Hacking Suite Experimental System Purifier > --- WEAPON ----------- Sigix Broadsword > --- INVENTORY -------- Improved Matter Compressor Transdimensional Reconstructor Transdimensional Reconstructor Integrity Redistributor Graviton Cannon Impact Mace Impact Mace Core Stripper CR-A16's Pointy Stick [Rating: 212] Favorites ----------- Power Hybrid Fission Core Engine Cooled Ion Engine Power Core Hybrid Fission Core Reactor Compact Particle Reactor Propulsion Light Treads Treads Light Treads Leg Potential Leg Hover Unit Improved Airjet Flight Unit Improved VTOL Module Utility Advanced Hacking Suite Device Advanced Sensor Array Storage Huge Storage Unit Processor Advanced Signal Interpreter Hackware Advanced Hacking Suite Protection Hardened Light Armor Plating Weapon Heavy Assault Rifle Energy Gun Small Laser Energy Cannon Advanced Beam Cannon Ballistic Gun Heavy Assault Rifle Ballistic Cannon Hypervelocity Gauss Cannon Launcher Mini Grenade Launcher Special Weapon RU-N14's Throwing Claymores Impact Weapon Impact Mace Slashing Weapon Sigix Broadsword Piercing Weapon CR-A16's Pointy Stick Special Melee Weapon Improved Datajack Build | -11 -10 -10 -9 -9 -9 -8 -8 -7 -7 -7 -7 -7 -7 -6 -6 -6 -6 -6 -6 -5 -5 -5 -5 -5 -5 -5 -5 -4 -4 -4 -4 -4 -4 -3 -3 -3 -2 -2 -2 -1 -1 ------- Run | Scr Mat Min Mat Min Exi Min Mat Fac Was Fac Low Low Zio Pro Fac Was Fac Low Dat Pro Fac Was Fac Ext Cet Arc Hub Fac Was Fac Upp Upp Zhi Pro Res Qua Res Tes Sec Acc Com Slots Evolved 18 | . . . 2 . . . 2 2 . . . . . . 2 . . . . . 2 . . . . . . 2 . . . . . . 2 . 2 . . 2 . Power 1 | . . . . . . . . . . . . . . . . . . . . . 1 . . . . . . . . . . . . . . . . . . . . Propulsion 6 | . . . 1 . . . 1 . . . . . . . 1 . . . . . 1 . . . . . . 1 . . . . . . . . 1 . . . . Utility 11 | . . . 1 . . . 1 2 . . . . . . 1 . . . . . . . . . . . . 1 . . . . . . 2 . 1 . . 2 . Weapon . | . . . . . . . . . . . . . . . . . . . . . . . . . . . . . . . . . . . . . . . . . . Parts Attached 313 | 6 7 4 24 10 4 . 35 18 . 5 1 3 6 2 6 2 38 2 . 4 11 5 7 6 7 . . 6 . 4 2 . 11 . 8 5 7 8 15 6 28 Power 39 | 1 1 2 3 1 1 . . 1 . 3 . 2 . 1 1 . 5 . . 1 1 3 1 1 1 . . . . 1 . . 2 . 1 . 1 . 1 . 3 Engine 13 | 1 1 1 2 1 1 . . . . . . 1 . . . . 3 . . 1 . 1 . . . . . . . . . . . . . . . . . . . Core 18 | . . 1 1 . . . . 1 . 3 . 1 . 1 1 . 2 . . . 1 1 1 1 1 . . . . 1 . . 1 . . . . . . . . Reactor 8 | . . . . . . . . . . . . . . . . . . . . . . 1 . . . . . . . . . . 1 . 1 . 1 . 1 . 3 Propulsion 75 | 2 1 . 8 . 3 . 13 8 . 2 . 1 3 . 3 . 14 . . . 4 . 3 . . . . 2 . 1 . . . . 1 . 2 . . 1 3 Treads 25 | 2 1 . 8 . 2 . 12 . . . . . . . . . . . . . . . . . . . . . . . . . . . . . . . . . . Leg 1 | . . . . . 1 . . . . . . . . . . . . . . . . . . . . . . . . . . . . . . . . . . . . Wheel . | . . . . . . . . . . . . . . . . . . . . . . . . . . . . . . . . . . . . . . . . . . Hover 39 | . . . . . . . 1 . . . . 1 3 . 3 . 14 . . . 4 . 3 . . . . 2 . 1 . . . . 1 . 2 . . 1 3 Flight 10 | . . . . . . . . 8 . 2 . . . . . . . . . . . . . . . . . . . . . . . . . . . . . . . Utility 97 | 1 3 2 7 1 . . 13 6 . . . . 2 . 1 . 10 2 . 1 2 2 2 . . . . 4 . 2 2 . 4 . 4 5 1 2 6 2 10 Device 48 | . 1 . . . . . 2 1 . . . . 2 . 1 . 4 2 . 1 . 2 1 . . . . 2 . 1 1 . 1 . 3 4 1 1 6 1 10 Storage 10 | 1 1 1 1 . . . . 1 . . . . . . . . 2 . . . . . . . . . . 1 . . . . 1 . . 1 . . . . . Processor 6 | . . . . . . . . 1 . . . . . . . . 2 . . . . . . . . . . . . . 1 . . . 1 . . . . 1 . Hackware 10 | . . . . . . . . 3 . . . . . . . . 2 . . . 2 . . . . . . 1 . . . . 1 . . . . 1 . . . Protection 23 | . 1 1 6 1 . . 11 . . . . . . . . . . . . . . . 1 . . . . . . 1 . . 1 . . . . . . . . Artifact . | . . . . . . . . . . . . . . . . . . . . . . . . . . . . . . . . . . . . . . . . . . Weapon 102 | 2 2 . 6 8 . . 9 3 . . 1 . 1 1 1 2 9 . . 2 4 . 1 5 6 . . . . . . . 5 . 2 . 3 6 8 3 12 Energy Gun 3 | 1 . . . . . . . . . . . . . . . . . . . . . . . . . . . . . . . . . . . . . 1 1 . . Energy Cannon 4 | . . . . 1 . . 1 . . . . . . . . . . . . . . . . . . . . . . . . . . . . . . 1 . . 1 Ballistic Gun 22 | 1 2 . 5 4 . . 7 . . . . . . . . . . . . . . . 1 1 . . . . . . . . 1 . . . . . . . . Ballistic Cannon 10 | . . . . . . . . . . . . . . . . . 3 . . 1 2 . . 1 2 . . . . . . . . . . . . . . . 1 Launcher 8 | . . . 1 3 . . 1 1 . . . . . . . . . . . . . . . . . . . . . . . . . . . . 1 1 . . . Special Weapon 8 | . . . . . . . . . . . . . 1 1 . 1 1 . . 1 . . . . 3 . . . . . . . . . . . . . . . . Impact Weapon 28 | . . . . . . . . 2 . . . . . . . . 5 . . . 2 . . 1 1 . . . . . . . 2 . 1 . . 1 4 2 7 Slashing Weapon 10 | . . . . . . . . . . . . . . . . . . . . . . . . . . . . . . . . . . . . . 2 2 3 1 2 Piercing Weapon 1 | . . . . . . . . . . . . . . . . . . . . . . . . 1 . . . . . . . . . . . . . . . . . Special Melee Weapon 8 | . . . . . . . . . . . 1 . . . 1 1 . . . . . . . 1 . . . . . . . . 2 . 1 . . . . . 1 Unidentified Prototypes 31 | . . . . . 2 . 1 1 . . . . 2 . . . 2 1 . . . 2 . . . . . . . 1 . . 3 . . . 1 4 3 1 7 Parts Lost 46 | . 1 . 5 2 . . 3 . . 4 . . . . . . 6 . . 1 . . . . . . 1 . . . . . . . . . . . 1 2 20 Power 10 | . 1 . 1 1 . . . . . 1 . . . . . . 2 . . 1 . . . . . . . . . . . . . . . . . . . . 3 Propulsion 11 | . . . 2 . . . 1 . . 2 . . . . . . . . . . . . . . . . . . . . . . . . . . . . . 1 5 Utility 21 | . . . 1 1 . . 1 . . . . . . . . . 3 . . . . . . . . . 1 . . . . . . . . . . . 1 1 12 Weapon 4 | . . . 1 . . . 1 . . 1 . . . . . . 1 . . . . . . . . . . . . . . . . . . . . . . . . Highest Loss Streak 9 | . 1 . 2 1 . . 1 . . 2 . . . . . . 2 . . 1 . . . . . . 1 . . . . . . . . . . . 1 1 9 To Critical Strikes . | . . . . . . . . . . . . . . . . . . . . . . . . . . . . . . . . . . . . . . . . . . Average Slot Usage (%) 97 | . 99 100 98 99 100 100 99 97 100 86 89 92 99 97 99 99 99 100 100 99 98 99 96 100 100 100 99 99 100 99 100 100 97 100 98 100 95 95 96 92 87 Engine 4 | . 13 5 1 8 11 11 9 . . . . . 7 6 . . 3 6 6 5 5 5 5 . . . . . . . . . . . . . . . . . . Core 4 | . . 8 8 2 . . . 6 7 6 7 6 . . 6 6 1 . . . 5 4 4 10 11 11 11 10 10 9 10 10 10 10 8 4 4 4 4 3 1 Treads 14 | . 28 28 32 33 32 33 36 . . . . . . . . . . . . . . . . . . . . . . . . . . . . . . . . . . Hover 14 | . . . . . . . . . . . . . 14 30 32 33 32 31 31 31 31 33 31 33 33 33 33 34 35 34 35 35 35 35 30 31 33 33 33 30 26 Flight 2 | . . . . . . . . 29 30 24 23 23 15 . . . . . . . . . . . . . . . . . . . . . . . . . . . . Device 7 | . 11 . . . . . 2 6 7 7 7 7 7 7 13 13 9 10 12 12 11 11 8 5 5 5 4 7 10 10 10 10 10 10 16 18 20 19 19 22 24 Storage 7 | . 14 14 11 11 11 11 9 7 7 7 7 7 7 7 6 6 6 6 6 6 5 5 5 5 5 5 5 5 5 5 5 5 5 5 4 4 4 4 4 3 3 Processor 2 | . . . . . . . . 6 7 7 7 7 7 7 6 6 3 6 6 6 5 5 5 5 5 5 5 5 5 5 5 5 5 5 4 4 4 4 4 4 4 Hackware 12 | . . . . . . . . 22 23 23 23 23 23 23 20 20 24 25 25 25 22 22 22 22 22 22 22 22 20 20 20 20 20 20 18 18 16 16 16 15 11 Protection 9 | . 1 14 21 22 22 22 24 . . . . . . . . . . . . . . . . 5 5 5 5 5 5 5 5 5 4 5 4 4 4 4 4 3 1 Ballistic Gun 9 | . 22 28 21 21 22 22 16 . . . . . . . . . . . . . . . 2 4 . . . . . . . . 2 5 4 4 . . . . . Impact Weapon 2 | . . . . . . . . 6 7 7 7 7 7 7 6 6 5 6 6 6 5 5 5 4 4 5 5 5 5 5 5 5 4 5 4 4 . . 2 . 2 Naked Turns . | . . . . . . . . . . . . . . . . . . . . . . . . . . . . . . . . . . . . . . . . . . Heaviest Build 120 | 11 36 58 103 103 104 104 120 17 16 16 15 15 21 22 25 25 38 34 34 35 38 38 36 43 48 41 41 44 44 44 44 44 44 40 65 65 78 78 78 77 109 Greatest Support 129 | 40 40 40 60 60 60 60 86 20 20 20 15 15 32 32 44 44 48 44 44 44 53 56 65 44 44 44 44 67 67 68 68 68 68 68 68 68 104 100 116 129 129 Greatest Overweight (x) 4 | . . 1 2 1 1 1 1 1 . . . . . . . . . . . . . . . . 1 . . . . . . . . . . . . . . 2 4 Average Overweight (x) . | . . . . 1 1 1 1 . . . . . . . . . . . . . . . . . . . . . . . . . . . . . . . . . . Largest Inventory Capacity 25 | 8 15 20 25 25 25 25 25 25 8 8 8 8 8 8 8 8 10 10 10 10 10 10 10 10 10 10 10 10 10 10 10 10 10 10 10 15 15 15 15 15 15 Average Capacity 15 | 7 10 16 24 25 25 25 25 8 8 8 8 8 8 8 8 8 9 10 10 10 10 10 10 10 10 10 10 10 10 10 10 10 10 10 10 10 15 15 15 15 15 Most Carried 25 | 5 15 15 25 25 25 25 25 25 8 8 8 8 8 8 8 8 10 10 9 10 10 10 10 10 10 10 10 10 10 10 10 10 10 10 10 14 15 15 15 15 15 Average Carried 14 | 1 7 14 23 24 24 25 24 8 7 7 8 7 7 7 7 7 8 9 9 8 9 9 9 10 10 10 10 9 9 9 10 10 9 10 9 9 14 14 14 14 12 Final Capacity 25 | 8 15 20 25 25 25 25 25 8 8 8 8 8 8 8 8 8 10 10 10 10 10 10 10 10 10 10 10 10 10 10 10 10 10 10 10 15 15 15 15 15 15 Final Carried 25 | 2 15 15 25 25 25 25 25 8 8 8 8 8 8 7 8 8 9 9 9 10 10 10 10 10 10 10 10 10 10 10 10 10 10 10 10 14 15 15 15 14 9 Class Distribution -------------------- 28% | Mutant 25% | Hacker-Mutant 24% | Hacker-Sprinter 13% | Scavenger-Mutant 5% | Wizard-Sprinter Dominant Class ---------------- Mutant | -10/Materials Mutant | -10/Mines Scavenger-Mutant | -9/Materials Scavenger-Mutant | -9/Mines Mutant | -9/Exiles Mutant | -8/Mines Mutant | -8/Materials Hacker-Sprinter | -7/Factory Hacker-Sprinter | -7/Waste Hacker-Sprinter | -7/Factory Hacker-Sprinter | -7/Lower Caves Hacker-Sprinter | -7/Lower Caves Hacker-Sprinter | -7/Zion Hacker-Mutant | -6/Proximity Caves Hacker-Mutant | -6/Factory Hacker-Mutant | -6/Waste Hacker-Mutant | -6/Factory Hacker-Mutant | -6/Lower Caves Hacker-Mutant | -6/Data Miner Hacker-Mutant | -5/Proximity Caves Hacker-Sprinter | -5/Factory Hacker-Mutant | -5/Waste Hacker-Sprinter | -5/Factory Hacker-Mutant | -5/Extension Hacker-Mutant | -5/Cetus Hacker-Mutant | -5/Archives Hacker-Mutant | -5/Hub_04(d) Wizard-Mutant | -4/Factory Wizard-Mutant | -4/Waste Hacker-Mutant | -4/Factory Hacker-Mutant | -4/Upper Caves Hacker-Sprinter | -4/Upper Caves Hacker-Mutant | -4/Zhirov Hacker-Sprinter | -3/Proximity Caves Hacker-Sprinter | -3/Research Hacker-Sprinter | -3/Quarantine Hacker-Sprinter | -2/Research Hacker-Sprinter | -2/Testing Wizard-Sprinter | -2/Section 7 Wizard-Sprinter | -1/Access Hacker-Mutant | -1/Command Resources | -11 -10 -10 -9 -9 -9 -8 -8 -7 -7 -7 -7 -7 -7 -6 -6 -6 -6 -6 -6 -5 -5 -5 -5 -5 -5 -5 -5 -4 -4 -4 -4 -4 -4 -3 -3 -3 -2 -2 -2 -1 -1 ----------- Run | Scr Mat Min Mat Min Exi Min Mat Fac Was Fac Low Low Zio Pro Fac Was Fac Low Dat Pro Fac Was Fac Ext Cet Arc Hub Fac Was Fac Upp Upp Zhi Pro Res Qua Res Tes Sec Acc Com Matter Collected 7322 | 282 214 154 1247 236 83 85 1030 164 386 50 10 10 80 20 20 60 701 54 . 223 476 50 10 120 88 24 45 98 . 59 48 . 405 43 68 28 122 50 210 99 170 Remotely . | . . . . . . . . . . . . . . . . . . . . . . . . . . . . . . . . . . . . . . . . . . Salvage Created 13097 | 59 372 179 1912 320 83 22 1620 34 1404 223 . 28 . 206 134 720 1629 . . 63 551 . 45 693 4 . . 198 . 164 76 23 319 11 156 28 253 30 605 154 779 Parts 506 | 9 34 8 145 24 1 2 86 . 10 2 . . . 11 5 6 30 . . 2 5 . 1 6 1 . . 5 . 1 . . 1 . . . 20 2 26 7 56 Haulers Intercepted 23 | . 2 . 5 . . . 5 . . 4 . . . . . . 4 . . . 1 . . 1 . . . . . 1 . . . . . . . . . . . Recyclers Shooed 13 | . . . 4 . . . 3 . . . . . . . . . 3 . . . . . . 3 . . . . . . . . . . . . . . . . . Parts Field Recycled . | . . . . . . . . . . . . . . . . . . . . . . . . . . . . . . . . . . . . . . . . . . Retrieved Matter . | . . . . . . . . . . . . . . . . . . . . . . . . . . . . . . . . . . . . . . . . . . Parts Self-Destructed 23 | . . . . . . . . . . . 3 8 . 6 . . . . . 6 . . . . . . . . . . . . . . . . . . . . . Prevented 2 | . . . . . . . . . . . . . . . . . . . . 2 . . . . . . . . . . . . . . . . . . . . . Kills | -11 -10 -10 -9 -9 -9 -8 -8 -7 -7 -7 -7 -7 -7 -6 -6 -6 -6 -6 -6 -5 -5 -5 -5 -5 -5 -5 -5 -4 -4 -4 -4 -4 -4 -3 -3 -3 -2 -2 -2 -1 -1 ------- Run | Scr Mat Min Mat Min Exi Min Mat Fac Was Fac Low Low Zio Pro Fac Was Fac Low Dat Pro Fac Was Fac Ext Cet Arc Hub Fac Was Fac Upp Upp Zhi Pro Res Qua Res Tes Sec Acc Com Combat Hostiles Destroyed 161 | . 11 4 34 17 . . 26 . 6 . . . . 12 . 3 8 . . 3 1 . . . . . . 1 . . . . . 1 . . 6 . 10 2 16 Melee 23 | . . . . . . . . . . . . . . . . . 1 . . . . . . . . . . . . . . . . 1 . . 6 . 8 1 6 Guns 75 | . 11 4 31 9 . . 20 . . . . . . . . . . . . . . . . . . . . . . . . . . . . . . . . . . Cannons 18 | . . . . . . . 2 . . . . . . 3 . . 3 . . 1 1 . . . . . . 1 . . . . . . . . . . . . 7 AOE 37 | . . . 3 8 . . 4 . 6 . . . . 9 . 3 2 . . 2 . . . . . . . . . . . . . . . . . . . . . Classes Destroyed 22 | 2 5 . 5 1 . . 2 . 1 1 . 1 . . . . 1 . . 1 . . . . . . . . . . . . . 1 . . 1 . . . . Worker 23 | 2 1 . 3 . . 1 1 2 . . . . . . . . 4 . . . 1 . . . . . . 2 . 2 . . . . . . . . 2 2 . Builder 5 | . . . 2 . . . . . . . . . . . . . 1 . . . 1 . . . . . . . . . . . . . . . . . . 1 . Tunneler 3 | 2 . . . . . . . . . . . . . . . . . . . . 1 . . . . . . . . . . . . . . . . . . . . Hauler 23 | . 2 . 5 . . . 5 . . 4 . . . . . . 4 . . . 1 . . 1 . . . . . 1 . . . . . . . . . . . Recycler 23 | . . . 3 . . . 3 . . . . . . . 1 . 6 . . . 2 . . 5 . . . 1 . . . . . . 1 . . . 1 . . Minesweeper 1 | . . . . . . . . . . . . . . . . . . . . 1 . . . . . . . . . . . . . . . . . . . . . Mechanic 1 | . . . . . . . . . . 1 . . . . . . . . . . . . . . . . . . . . . . . . . . . . . . . Operator 13 | . 1 . 3 . . . 2 . 1 . . . . . . . 2 . . . . . 1 1 . . . . . . . . . . . 1 . 1 . . . Drone 1 | . . . . . . . . . . . . . . . . . . . . . . . . . . . . . . . . . . 1 . . . . . . . Watcher 27 | . 2 . 3 . . . 2 . . 2 . . . . . . 5 . . . 4 . 1 . 2 . . . . 1 . . . . 1 . 1 . 1 . 2 Swarmer 58 | . 9 . 6 10 . . 4 . . . . . . 6 . . 3 . . 2 . . . . . . . . . . . . . . . . 4 . 7 . 7 Cutter 4 | . . . . . . . . . . . . . . . . . . . . . . . . . . . . . . . . . . . . . 2 . . 2 . Grunt 52 | . 2 3 19 4 . . 17 . . . . . . 4 . . 1 . . . . . . . . . . 1 . . . . . . . . . . 1 . . Brawler 3 | . . . . . . . 1 . . . . . . 2 . . . . . . . . . . . . . . . . . . . . . . . . . . . Duelist 3 | . . . 2 1 . . . . . . . . . . . . . . . . . . . . . . . . . . . . . . . . . . . . . Protector 1 | . . . 1 . . . . . . . . . . . . . . . . . . . . . . . . . . . . . . . . . . . . . . Sentry 14 | . . . 6 . . . 3 . . . . . . . . . 2 . . 1 1 . . . . . . . . . . . . . . . . . . . 1 Hunter 2 | . . . . . . . 1 . . . . . . . . . 1 . . . . . . . . . . . . . . . . . . . . . . . . Programmer 11 | . . . . . . . . . . . . . . . . . 1 . . . . . . . . . . . . . . . . . . . . . 2 . 8 Compactor 9 | . . . . . . . . . 6 . . . . . . 3 . . . . . . . . . . . . . . . . . . . . . . . . . Decomposer 1 | . . . . . . . . . . . . . . . . . . . . . . . . . . . . . . . . 1 . . . . . . . . . Samaritan 1 | . . . . . . . . . . . . 1 . . . . . . . . . . . . . . . . . . . . . . . . . . . . . Assembled 2 | . . . . 2 . . . . . . . . . . . . . . . . . . . . . . . . . . . . . . . . . . . . . Wasp 1 | . . . . . . . . . . . . . . . . . 1 . . . . . . . . . . . . . . . . . . . . . . . . Best Kill Streak 11 | 3 7 2 11 6 . 1 5 1 3 2 . . . 6 1 2 4 . . 2 2 . 2 3 1 . . 2 . 3 . . . 1 1 1 4 1 4 2 6 Combat Bots Only 7 | . 7 2 4 6 . . 4 . 3 . . . . 6 . 2 3 . . 2 1 . . . . . . 1 . . . . . 1 . . 4 . 4 2 6 Max Kills in Single Turn 4 | 1 2 1 2 3 . 1 2 1 2 1 . 1 . 4 1 1 4 . . 1 1 . 1 1 1 . . 1 . 1 . 1 . 1 1 1 1 1 1 1 1 Gunslinging 1 | . 1 . 1 1 . . . . . . . . . . . . . . . . . . . . . . . . . . . . . . . . . . . . . Exploded 4 | . . . 2 3 . . 1 . 2 . . . . 4 . 1 2 . . 1 . . . . . . . . . . . . . . . . . . . . . Melee 1 | . . . . . . . . . . . . . . . . . 1 . . . . . . . . . . . . . . . . 1 . . 1 . 1 1 1 Uniques/NPCs Destroyed 1 | . . 1 . . . . . . . . . . . . . . . . . . . . . . . . . . . . . . . . . . . . . . . YI-UF0 (-10/Mines) Combat | -11 -10 -10 -9 -9 -9 -8 -8 -7 -7 -7 -7 -7 -7 -6 -6 -6 -6 -6 -6 -5 -5 -5 -5 -5 -5 -5 -5 -4 -4 -4 -4 -4 -4 -3 -3 -3 -2 -2 -2 -1 -1 -------- Run | Scr Mat Min Mat Min Exi Min Mat Fac Was Fac Low Low Zio Pro Fac Was Fac Low Dat Pro Fac Was Fac Ext Cet Arc Hub Fac Was Fac Upp Upp Zhi Pro Res Qua Res Tes Sec Acc Com Damage Taken 14292 | . 174 583 1449 513 . . 2133 . 23 349 . . . 197 . . 920 . . 70 287 . . 23 62 7 64 . . 20 . 83 . . 70 . 308 41 864 882 5170 Core 1740 | . 24 81 251 81 . . 325 . . 83 . . . 22 . . 163 . . . 24 . . . . . . . . . . 23 . . 9 . 17 . 67 54 516 Absorbed by Shields 3205 | . . . . . . . . . . . . . . . . . . . . . . . . . . 7 . . . . . . . . 72 . 266 42 849 784 1185 Regen/Repaired (Parts) 4778 | . . . 180 . . . 87 . . 18 . . . . 57 . 178 . . . 122 . 190 . . 7 6 36 . 78 . . . . 65 . 85 60 743 937 1929 Core Remaining (%) 72 | 100 . 58 . . . 17 40 . . . . . . 85 . . . . . 80 . . . . . . 97 . . . . . . 98 . 99 . . 88 . 39 Volleys Fired 555 | 10 36 19 136 31 9 5 121 . 36 . . . . 16 . 4 44 . . 30 10 . . 2 5 3 8 3 . . . . . 1 2 . . . 2 . 22 Largest 2 | 2 2 2 2 2 2 2 2 . 1 . . . . 1 . 1 1 . . 1 1 . . 1 1 1 1 1 . . . . . 1 1 . . . 1 . 2 Hottest 120 | 60 60 46 46 68 46 46 91 . 30 . . . . . . . 61 . . 61 61 . . 35 61 61 61 61 . . . . . 33 33 . . . 88 . 120 Shots Fired 903 | 20 72 38 268 49 18 10 235 . 36 . . . . 16 . 4 44 . . 30 10 . . 2 5 3 8 3 . . . . . 3 2 . . . 2 . 25 Gun 677 | 20 72 38 264 38 18 10 208 . . . . . . . . . . . . . . . . 2 . . . . . . . . . 3 2 . . . 2 . . Cannon 145 | . . . . 4 . . 20 . . . . . . . . . 43 . . 28 10 . . . 1 3 8 3 . . . . . . . . . . . . 25 Launcher 54 | . . . 4 7 . . 7 . 36 . . . . . . . . . . . . . . . . . . . . . . . . . . . . . . . . Special 27 | . . . . . . . . . . . . . . 16 . 4 1 . . 2 . . . . 4 . . . . . . . . . . . . . . . . Kinetic 758 | 10 47 38 264 38 18 10 208 . . . . . . . . . 43 . . 28 10 . . 2 1 3 8 3 . . . . . 3 2 . . . . . 22 Thermal 64 | 10 25 . . 4 . . 20 . . . . . . . . . . . . . . . . . . . . . . . . . . . . . . . 2 . 3 Explosive 81 | . . . 4 7 . . 7 . 36 . . . . 16 . 4 1 . . 2 . . . . 4 . . . . . . . . . . . . . . . . Electromagnetic . | . . . . . . . . . . . . . . . . . . . . . . . . . . . . . . . . . . . . . . . . . . Robot Hit Streak 20 | 5 7 8 9 5 11 4 20 . 10 . . . . 5 . 8 12 . . 13 3 . . 1 2 1 2 3 . . . . . . 1 . . . . . 3 Robot Miss Streak 7 | 2 7 4 3 4 1 2 3 . 1 . . . . 1 . . 3 . . 3 2 . . 1 1 1 2 . . . . . . . 1 . . . . . 3 Penetration Max 1 | . . . . . . . . . . . . . . . . . 1 . . . . . . . . . . . . . . . . . . . . . . . . Secondary Targets 7 | . 2 . 3 2 . . . . . . . . . . . . . . . . . . . . . . . . . . . . . . . . . . . . . Max Gunslinging Chain 1 | . 1 . 1 1 . . . . . . . . . . . . . . . . . . . . . . . . . . . . . . . . . . . . . Shots Hit Robots 778 | 12 38 23 165 23 15 5 168 2 18 12 3 1 . 5 1 4 58 . . 20 18 . 2 14 2 1 3 6 . 7 1 1 9 1 5 1 8 1 38 5 82 Core Hits 337 | 5 23 8 78 22 7 1 82 . 20 . . . . 18 . 4 17 . . 6 2 . . . 9 . 1 5 . . . . 1 . . . 5 . 8 1 14 Critical Kills 12 | . . . . . . . . . . . . . . . . . 6 . . 1 2 . . . . . . 2 . . . . . . . . . . . . 1 Critical Parts Destroyed 61 | . . . . . . . . 1 . 2 . . . . . . 15 . . 4 4 . 1 5 . . . . . 2 . . . . 2 . . . 6 1 18 Critical Strikes 84 | . . . . . . . . 1 . 2 . . . 1 . . 23 . . 5 6 . 1 5 . 1 . 2 . 2 . . . . 2 . . . 6 1 26 Destroy 23 | . . . . . . . . . . . . . . . . . 14 . . 4 1 . . 1 . 1 . 1 . . . . . . 1 . . . . . . Smash 60 | . . . . . . . . 1 . 2 . . . . . . 9 . . 1 5 . 1 4 . . . 1 . 2 . . . . 1 . . . 6 1 26 Sever 1 | . . . . . . . . . . . . . . 1 . . . . . . . . . . . . . . . . . . . . . . . . . . . Melee Attacks 639 | . . . . . . . . 14 . 30 3 15 1 1 19 . 71 2 . 13 53 . 6 21 4 . 13 40 . 18 2 5 9 22 16 11 32 6 74 15 123 Impact 493 | . . . . . . . . 14 . 30 . 15 1 1 19 . 71 2 . 13 53 . 6 20 4 . 13 40 . 18 2 5 5 22 15 11 . . 33 4 76 Slashing 135 | . . . . . . . . . . . . . . . . . . . . . . . . . . . . . . . . . . . . . 32 6 41 11 45 Piercing . | . . . . . . . . . . . . . . . . . . . . . . . . . . . . . . . . . . . . . . . . . . Sneak Attacks 64 | . . . . . . . . 2 . 7 3 1 . . 1 . 12 . . 1 7 . 1 8 . . . 3 . 4 . 1 3 1 3 . . . 3 3 . Combat Hostiles 1 | . . . . . . . . . . . . . . . . . . . . . . . . . . . . . . . . . . 1 . . . . . . . Follow-up Attacks 14 | . . . . . . . . . . . . . . . . . . . . . 1 . . . . . . . . . . . . . . . . . 2 1 10 Damage Inflicted 33065 | 135 523 389 2807 792 162 70 2849 244 3186 1002 . 139 . 1702 96 929 3136 . . 531 1205 . 190 1021 750 16 32 338 . 639 61 94 574 150 258 79 829 168 2768 592 4609 Guns 6446 | 135 523 389 2596 357 162 70 2187 . . . . . . . . . . . . . . . . 14 . . . . . . . . . . 13 . . . . . . Cannons 1525 | . . . . . . . 306 . . . . . . . . . 384 . . 125 17 . . . . 16 . 50 . . . . . . . . . . . . 627 Explosions 7700 | . . . 211 435 . . 356 . 3186 . . . . 1493 . 854 297 . . 266 . . . . 602 . . . . . . . . . . . . . . . . Melee 16900 | . . . . . . . . 244 . 1002 . 139 . . 96 . 2423 . . 110 1188 . 190 1007 . . 32 288 . 639 61 94 574 150 245 79 829 168 2768 592 3982 Ramming . | . . . . . . . . . . . . . . . . . . . . . . . . . . . . . . . . . . . . . . . . . . Kinetic 7319 | 58 341 389 2596 357 162 70 2187 . . . . . . . . . 384 . . 125 17 . . 14 . 16 . 50 . . . . . . 13 . . . . . 540 Thermal 652 | 77 182 . . . . . 306 . . . . . . . . . . . . . . . . . . . . . . . . . . . . . . . . . 87 Explosive 7700 | . . . 211 435 . . 356 . 3186 . . . . 1493 . 854 297 . . 266 . . . . 602 . . . . . . . . . . . . . . . . Electromagnetic . | . . . . . . . . . . . . . . . . . . . . . . . . . . . . . . . . . . . . . . . . . . Impact 13033 | . . . . . . . . 244 . 1002 . 139 . . 96 . 2423 . . 110 1188 . 190 1007 . . 32 288 . 639 61 94 574 150 245 79 . . 1323 142 3007 Slashing 4361 | . . . . . . . . . . . . . . 209 . 75 32 . . 30 . . . . 148 . . . . . . . . . . . 829 168 1445 450 975 Piercing . | . . . . . . . . . . . . . . . . . . . . . . . . . . . . . . . . . . . . . . . . . . Highest Corruption 29 | . . . . . . . . . . . . . . . . . 1 1 . . . . . . . . . 1 8 8 8 8 8 8 . . 1 1 4 2 29 Average Corruption 5 | . . . . . . . . . . . . . . . . . 1 1 . . . . . . . . . 1 3 8 8 8 8 8 . . 1 1 2 1 14 Corruption Purged 11 | . . . . . . . . . . . . . . . . . . 1 . . . . . . . . . . . . . . . . . . . . . . 10 Corruption Blocked . | . . . . . . . . . . . . . . . . . . . . . . . . . . . . . . . . . . . . . . . . . . Effects 113 | . . . . . . . . . . . . . . . . . 11 . . . . . . . . . . . . 18 9 4 4 22 . . . 3 11 . 31 Message Errors 23 | . . . . . . . . . . . . . . . . . 2 . . . . . . . . . . . . 3 2 1 2 4 . . . 1 3 . 5 Matter Fused 18 | . . . . . . . . . . . . . . . . . 1 . . . . . . . . . . . . 5 1 . 1 2 . . . 1 2 . 5 Heat Flow Errors 15 | . . . . . . . . . . . . . . . . . 2 . . . . . . . . . . . . . 2 2 . 4 . . . . 2 . 3 Energy Discharges 19 | . . . . . . . . . . . . . . . . . 1 . . . . . . . . . . . . 5 1 . . 6 . . . . . . 6 Parts Rejected 2 | . . . . . . . . . . . . . . . . . . . . . . . . . . . . . . . . . . . . . . . 1 . 1 Data Loss (minor) 19 | . . . . . . . . . . . . . . . . . 2 . . . . . . . . . . . . 2 3 . . 3 . . . 1 3 . 5 Data Loss (major) 13 | . . . . . . . . . . . . . . . . . 3 . . . . . . . . . . . . 3 . 1 1 1 . . . . . . 4 Misfires 2 | . . . . . . . . . . . . . . . . . . . . . . . . . . . . . . . . . . 2 . . . . . . . Alerts 1 | . . . . . . . . . . . . . . . . . . . . . . . . . . . . . . . . . . . . . . . . . 1 Misdirections 1 | . . . . . . . . . . . . . . . . . . . . . . . . . . . . . . . . . . . . . . . . . 1 Overload Shots . | . . . . . . . . . . . . . . . . . . . . . . . . . . . . . . . . . . . . . . . . . . Overflow Damage 8109 | . . . . 15 . . . 229 . 678 . 126 . 6 66 . 1217 . . 110 811 . 155 614 11 . . 23 . 293 37 78 469 110 179 69 146 118 866 355 1328 Projectiles 64 | . . . . . . . . . . . . . . . . . . . . . . . . . . . . . . . . . . . 34 . . . . . 30 Explosions 32 | . . . . 15 . . . . . . . . . 6 . . . . . . . . . . 11 . . . . . . . . . . . . . . . . Melee 8013 | . . . . . . . . 229 . 678 . 126 . . 66 . 1217 . . 110 811 . 155 614 . . . 23 . 293 37 78 469 110 145 69 146 118 866 355 1298 Knockbacks 38 | . . . . . . . . . . . . . . . . . 15 . . . 2 . . 6 . . . 2 . . . . . . 3 . . . 5 1 4 Impact 33 | . . . . . . . . . . . . . . . . . 14 . . . 2 . . 6 . . . 1 . . . . . . 2 . . . 5 1 2 Kinetic 3 | . . . . . . . . . . . . . . . . . . . . . . . . . . . . 1 . . . . . . . . . . . . 2 Secondary 2 | . . . . . . . . . . . . . . . . . 1 . . . . . . . . . . . . . . . . . 1 . . . . . . Self-Inflicted Damage 199 | . . . 35 61 . . 80 . 23 . . . . . . . . . . . . . . . . . . . . . . . . . . . . . . . . Shots 10 | . . . 1 3 . . 5 . 1 . . . . . . . . . . . . . . . . . . . . . . . . . . . . . . . . Rammed . | . . . . . . . . . . . . . . . . . . . . . . . . . . . . . . . . . . . . . . . . . . Targets Rammed . | . . . . . . . . . . . . . . . . . . . . . . . . . . . . . . . . . . . . . . . . . . Kicked . | . . . . . . . . . . . . . . . . . . . . . . . . . . . . . . . . . . . . . . . . . . Crushed . | . . . . . . . . . . . . . . . . . . . . . . . . . . . . . . . . . . . . . . . . . . Highest Temperature 449 | . . 37 102 61 . . 321 . . 14 . . . 4 . . 257 . . 24 84 . . 8 18 36 108 34 . . 254 188 . 288 . . 42 2 264 72 449 Average Temperature 60 | . . 14 36 15 . . 86 . . 7 . . . 4 . . 32 . . 9 34 . . 8 13 18 47 18 . . 121 72 . 89 . . 5 1 79 27 95 Received Heat Transfer 2429 | . 42 90 522 18 . . 981 . . 36 . . . 42 . . 24 . . 27 45 . . 27 9 4 12 . . . . 24 . . 14 . . 4 36 8 464 Effects 7 | . . . . . . . 2 . . . . . . . . . . . . . . . . . . . . . . . . . . . . . . . . . 5 Shutdowns 1 | . . . . . . . . . . . . . . . . . . . . . . . . . . . . . . . . . . . . . . . . . 1 Interference 3 | . . . . . . . 2 . . . . . . . . . . . . . . . . . . . . . . . . . . . . . . . . . 1 Short Circuit 2 | . . . . . . . . . . . . . . . . . . . . . . . . . . . . . . . . . . . . . . . . . 2 Damage (minor) 1 | . . . . . . . . . . . . . . . . . . . . . . . . . . . . . . . . . . . . . . . . . 1 Siege Activations . | . . . . . . . . . . . . . . . . . . . . . . . . . . . . . . . . . . . . . . . . . . Robots Corrupted . | . . . . . . . . . . . . . . . . . . . . . . . . . . . . . . . . . . . . . . . . . . Combat Hostiles . | . . . . . . . . . . . . . . . . . . . . . . . . . . . . . . . . . . . . . . . . . . Parts Fried 78 | . . . . . . . . 2 . 10 . . . . . . 22 . . 2 11 . 2 9 . . . 1 . 3 . . 2 . 4 1 . . 1 4 4 Impact Corruptions 191 | . . . . . . . . 3 . 13 . 4 . . 1 . 42 . . 1 26 . 2 18 . . . 1 . 7 2 4 10 4 6 2 . . 14 3 28 Robots Melted . | . . . . . . . . . . . . . . . . . . . . . . . . . . . . . . . . . . . . . . . . . . Combat Hostiles . | . . . . . . . . . . . . . . . . . . . . . . . . . . . . . . . . . . . . . . . . . . Parts Melted 3 | . 1 . . . . . 1 . . . . . . . . . . . . . . . . . . . . . . . . . . . . . . . . . 1 Heat Transferred 1204 | 175 400 . . . . . 555 . . . . . . . . . . . . . . . . . . . . . . . . . . . . . . . . . 74 Parts Sabotaged . | . . . . . . . . . . . . . . . . . . . . . . . . . . . . . . . . . . . . . . . . . . Parts Stolen . | . . . . . . . . . . . . . . . . . . . . . . . . . . . . . . . . . . . . . . . . . . Parts Stripped . | . . . . . . . . . . . . . . . . . . . . . . . . . . . . . . . . . . . . . . . . . . Power Chain Reactions . | . . . . . . . . . . . . . . . . . . . . . . . . . . . . . . . . . . . . . . . . . . Missiles Intercepted . | . . . . . . . . . . . . . . . . . . . . . . . . . . . . . . . . . . . . . . . . . . Alert | -11 -10 -10 -9 -9 -9 -8 -8 -7 -7 -7 -7 -7 -7 -6 -6 -6 -6 -6 -6 -5 -5 -5 -5 -5 -5 -5 -5 -4 -4 -4 -4 -4 -4 -3 -3 -3 -2 -2 -2 -1 -1 ------- Run | Scr Mat Min Mat Min Exi Min Mat Fac Was Fac Low Low Zio Pro Fac Was Fac Low Dat Pro Fac Was Fac Ext Cet Arc Hub Fac Was Fac Upp Upp Zhi Pro Res Qua Res Tes Sec Acc Com Peak Influence 1431 | 20 276 108 616 537 . 77 414 123 66 1431 . . . . 247 58 382 . . . 197 30 165 556 778 461 727 888 323 397 . . . . 191 83 341 320 665 536 426 Initial 390 | . 13 13 . 104 . . 1 36 3 46 . . . . 185 17 40 . . . 15 30 21 18 227 311 161 355 263 226 . . . . . . 46 191 180 390 9 Average 218 | 4 41 22 279 235 . 28 178 64 39 1011 . . . . 210 40 106 . . . 68 30 35 195 485 437 415 703 286 315 . . . . 58 25 164 244 451 414 211 Maximum Alert Level 4 | . 1 . 2 2 . . 2 . . 4 . . . . 1 . 1 . . . . . . 2 3 2 3 3 1 1 . . . . . . 1 1 2 2 2 Low Security (%) 62 | 100 97 100 35 55 . 100 59 100 100 11 . . . . 36 100 88 . . . 100 100 100 65 . . 32 . . 8 . . . . 100 100 62 11 9 3 49 Level 1 22 | . 2 . 37 29 . . 38 . . 13 . . . . 63 . 11 . . . . . . 6 55 20 16 6 100 91 . . . . . . 37 88 29 40 41 Level 2 10 | . . . 26 14 . . 1 . . 1 . . . . . . . . . . . . . 27 27 79 39 33 . . . . . . . . . . 61 55 9 Level 3 2 | . . . . . . . . . . 1 . . . . . . . . . . . . . . 17 . 12 59 . . . . . . . . . . . . . Level 4 2 | . . . . . . . . . . 72 . . . . . . . . . . . . . . . . . . . . . . . . . . . . . . . Level 5 . | . . . . . . . . . . . . . . . . . . . . . . . . . . . . . . . . . . . . . . . . . . High Security . | . . . . . . . . . . . . . . . . . . . . . . . . . . . . . . . . . . . . . . . . . . Max Security . | . . . . . . . . . . . . . . . . . . . . . . . . . . . . . . . . . . . . . . . . . . Squads Dispatched 38 | . 1 . 3 . . . 5 . . 4 . . . . 1 . 2 . . . 1 . 1 3 . . 2 5 . 1 . . . . 1 2 1 . 1 3 1 Investigation 5 | . . . . . . . 1 . . . . . . . . . . . . . . . 1 . . . . 2 . 1 . . . . . . . . . . . Extermination 9 | . . . . . . . . . . 1 . . . . 1 . 1 . . . 1 . . . . . . 1 . . . . . . . 1 . . 1 1 1 Reinforcement 21 | . 1 . 2 . . . 3 . . 2 . . . . . . 1 . . . . . . 3 . . 2 2 . . . . . . 1 1 1 . . 2 . Assault 1 | . . . 1 . . . . . . . . . . . . . . . . . . . . . . . . . . . . . . . . . . . . . . Garrison 2 | . . . . . . . 1 . . 1 . . . . . . . . . . . . . . . . . . . . . . . . . . . . . . . Intercept . | . . . . . . . . . . . . . . . . . . . . . . . . . . . . . . . . . . . . . . . . . . Searches Triggered 1 | . . . . . . . . . . . . . . . . . . . . . . . . . . . . . . . . . . . . . . . . 1 . Data Miner Redirects 1 | . . . . . . . . . . . . . . . . . . . . . . . . . . . . 1 . . . . . . . . . . . . . Construction Impeded 2 | . . . . . . . . . . . . . . . . . . . . . . . . 1 . . 1 . . . . . . . . . . . . . . Haulers Reinforced 3 | . . . . . . . . . . 1 . . . . . . 1 . . . . . . . . . . 1 . . . . . . . . . . . . . Active Scanning Responses . | . . . . . . . . . . . . . . . . . . . . . . . . . . . . . . . . . . . . . . . . . . Cargo Convoy Interrupts 1 | . . . . . . . . . . . . . . . . . . . . . 1 . . . . . . . . . . . . . . . . . . . . Stealth | -11 -10 -10 -9 -9 -9 -8 -8 -7 -7 -7 -7 -7 -7 -6 -6 -6 -6 -6 -6 -5 -5 -5 -5 -5 -5 -5 -5 -4 -4 -4 -4 -4 -4 -3 -3 -3 -2 -2 -2 -1 -1 --------- Run | Scr Mat Min Mat Min Exi Min Mat Fac Was Fac Low Low Zio Pro Fac Was Fac Low Dat Pro Fac Was Fac Ext Cet Arc Hub Fac Was Fac Upp Upp Zhi Pro Res Qua Res Tes Sec Acc Com Distress Signals 28 | . 1 . 4 2 . . 1 . . . . . . . . . 2 . . . 1 . . 3 2 . . 1 . . . . . . 3 . 2 . 3 2 1 Communications Jammed . | . . . . . . . . . . . . . . . . . . . . . . . . . . . . . . . . . . . . . . . . . . Distress Signals . | . . . . . . . . . . . . . . . . . . . . . . . . . . . . . . . . . . . . . . . . . . Times Spotted 458 | . 23 5 57 19 . 3 48 3 5 14 1 9 . 10 . 5 22 . . 5 25 . 3 21 16 3 10 8 5 2 1 6 . 2 12 2 18 6 37 16 36 Peak Tracking Total 20 | . 8 2 6 4 . 3 7 1 2 4 1 5 . 6 1 3 4 . . 3 20 . 2 5 5 2 7 3 5 2 4 4 . 2 4 2 10 5 10 12 8 Tactical Retreats 50 | . . . . . . . 4 . . . . 1 . 1 . 1 3 . . 2 4 . . 1 . . 2 . . 1 1 3 . 1 2 . 3 1 7 5 7 Traps | -11 -10 -10 -9 -9 -9 -8 -8 -7 -7 -7 -7 -7 -7 -6 -6 -6 -6 -6 -6 -5 -5 -5 -5 -5 -5 -5 -5 -4 -4 -4 -4 -4 -4 -3 -3 -3 -2 -2 -2 -1 -1 ------- Run | Scr Mat Min Mat Min Exi Min Mat Fac Was Fac Low Low Zio Pro Fac Was Fac Low Dat Pro Fac Was Fac Ext Cet Arc Hub Fac Was Fac Upp Upp Zhi Pro Res Qua Res Tes Sec Acc Com Traps Triggered 17 | . . . . . . . 1 1 . 1 . . . . 1 . 8 . . . 2 . . . . . . 1 . . . . . . . . . . . 1 1 Indirectly . | . . . . . . . . . . . . . . . . . . . . . . . . . . . . . . . . . . . . . . . . . . Trap Hack Attempts . | . . . . . . . . . . . . . . . . . . . . . . . . . . . . . . . . . . . . . . . . . . Triggered . | . . . . . . . . . . . . . . . . . . . . . . . . . . . . . . . . . . . . . . . . . . Disarmed 11 | . . . . . . . . . . . . . . . . . . . . . . . 6 5 . . . . . . . . . . . . . . . . . Reprogrammed . | . . . . . . . . . . . . . . . . . . . . . . . . . . . . . . . . . . . . . . . . . . Reused . | . . . . . . . . . . . . . . . . . . . . . . . . . . . . . . . . . . . . . . . . . . Traps Extracted . | . . . . . . . . . . . . . . . . . . . . . . . . . . . . . . . . . . . . . . . . . . Installed . | . . . . . . . . . . . . . . . . . . . . . . . . . . . . . . . . . . . . . . . . . . Triggered 1 | . . . . . . . . . . . . . . . . . . . . 1 . . . . . . . . . . . . . . . . . . . . . Most Traps Carried 2 | . . . . . . . . . . . . . . . . . . . . 2 2 . . . . . . . . . . . . . . . . . . . . Machines | -11 -10 -10 -9 -9 -9 -8 -8 -7 -7 -7 -7 -7 -7 -6 -6 -6 -6 -6 -6 -5 -5 -5 -5 -5 -5 -5 -5 -4 -4 -4 -4 -4 -4 -3 -3 -3 -2 -2 -2 -1 -1 ---------- Run | Scr Mat Min Mat Min Exi Min Mat Fac Was Fac Low Low Zio Pro Fac Was Fac Low Dat Pro Fac Was Fac Ext Cet Arc Hub Fac Was Fac Upp Upp Zhi Pro Res Qua Res Tes Sec Acc Com Machines Disabled 44 | . . . 1 . . . . . . 16 . . . . . . 4 . . . . . . 3 1 2 1 7 . . . . . . . 4 . 2 3 . . Max in Single Turn 1 | . . . 1 . . . . . . . . . . . . . 1 . . . . . . . 1 . . . . . . . . . . 1 . 1 1 . . Garrison Access 16 | . . . . . . . 1 1 . 1 . . . . 1 . 3 . . . 2 . 2 . . . 1 . . 1 . . . . . . . 1 1 1 . Energy Cycler 1 | . . . . . . . . . . . . . . . . . . . . . . . . 1 . . . . . . . . . . . . . . . . . Machines Sabotaged . | . . . . . . . . . . . . . . . . . . . . . . . . . . . . . . . . . . . . . . . . . . Garrisons Compromised . | . . . . . . . . . . . . . . . . . . . . . . . . . . . . . . . . . . . . . . . . . . Overloaded Fab Kills . | . . . . . . . . . . . . . . . . . . . . . . . . . . . . . . . . . . . . . . . . . . Hacking | -11 -10 -10 -9 -9 -9 -8 -8 -7 -7 -7 -7 -7 -7 -6 -6 -6 -6 -6 -6 -5 -5 -5 -5 -5 -5 -5 -5 -4 -4 -4 -4 -4 -4 -3 -3 -3 -2 -2 -2 -1 -1 --------- Run | Scr Mat Min Mat Min Exi Min Mat Fac Was Fac Low Low Zio Pro Fac Was Fac Low Dat Pro Fac Was Fac Ext Cet Arc Hub Fac Was Fac Upp Upp Zhi Pro Res Qua Res Tes Sec Acc Com Machines Accessed 172 | . 7 1 7 . . . 11 11 . 14 . 1 . . 9 . 20 1 4 . 13 . 7 3 2 1 2 9 . 9 . . 8 . 5 4 3 4 9 6 1 Terminals 102 | . 7 1 5 . . . 6 9 . 6 . . . . 7 . 10 . . . 8 . 2 3 2 . 1 7 . 4 . . . . 3 2 2 3 8 5 1 Fabricators 7 | . . . . . . . . 1 . 3 . . . . . . . . . . . . 1 . . . . 1 . 1 . . . . . . . . . . . Repair Stations 19 | . . . 1 . . . 2 . . 3 . . . . 1 . 3 . . . 3 . 2 . . . . 1 . 2 . . . . 1 . . . . . . Recycling Units . | . . . . . . . . . . . . . . . . . . . . . . . . . . . . . . . . . . . . . . . . . . Scanalyzers 12 | . . . 1 . . . 2 . . 1 . . . . . . 3 . . . . . . . . . . . . 1 . . . . 1 2 1 . . . . Garrison Access 17 | . . . . . . . 1 1 . 1 . . . . 1 . 4 . . . 2 . 2 . . . 1 . . 1 . . . . . . . 1 1 1 . Total Hacks 506 | . 17 1 18 . . . 32 30 . 35 . 1 . . 29 . 59 1 28 . 42 . 23 12 8 5 3 29 . 21 . . 47 . 13 7 4 10 14 15 2 Successful 399 | . 13 1 11 . . . 23 24 . 20 . 1 . . 19 . 41 1 28 . 32 . 21 10 4 5 1 27 . 20 . . 47 . 11 7 3 7 12 9 1 Failed 107 | . 4 . 7 . . . 9 6 . 15 . . . . 10 . 18 . . . 10 . 2 2 4 . 2 2 . 1 . . . . 2 . 1 3 2 6 1 Catastrophic 6 | . . . 1 . . . 1 . . 1 . . . . 2 . 1 . . . . . . . . . . . . . . . . . . . . . . . . Database Lockouts . | . . . . . . . . . . . . . . . . . . . . . . . . . . . . . . . . . . . . . . . . . . Manual 143 | . 3 . 5 . 2 . 8 13 . 1 . . . . 18 . 15 . . . 13 . 7 8 1 . 1 13 . 8 . . . . 6 . 3 6 3 9 . Terminals 288 | . 17 1 10 . . . 17 28 . 20 . . . . 24 . 25 . . . 27 . 10 12 8 . 1 25 . 12 . . . . 10 4 3 8 11 13 2 Fabricators 10 | . . . . . . . . 1 . 3 . . . . . . . . . . . . 2 . . . . 2 . 2 . . . . . . . . . . . Repair Stations 64 | . . . 5 . . . 7 . . 7 . . . . 4 . 12 . . . 13 . 8 . . . . 2 . 4 . . . . 2 . . . . . . Recycling Units . | . . . . . . . . . . . . . . . . . . . . . . . . . . . . . . . . . . . . . . . . . . Scanalyzers 31 | . . . 3 . . . 6 . . 2 . . . . . . 13 . . . . . . . . . . . . 2 . . . . 1 3 1 . . . . Garrison Access 31 | . . . . . . . 2 1 . 3 . . . . 1 . 9 . . . 2 . 3 . . . 2 . . 1 . . . . . . . 2 3 2 . Terminal Hacks 238 | . 10 1 5 . . . 9 15 . 10 . 1 . . 7 . 10 1 28 . 15 . 6 8 4 5 . 15 . 8 . . 47 . 7 4 1 3 9 8 1 Record 56 | . . . . . . . . . . . . . . . . . . . 11 . . . . . 4 5 . . . . . . 35 . . 1 . . . . . Part Schematic 18 | . . . . . . . . . . 1 . . . . . . . . 10 . 1 . . . . . . 2 . . . . 4 . . . . . . . . Robot Schematic 6 | . . . . . . . . 2 . . . . . . . . . . 4 . . . . . . . . . . . . . . . . . . . . . . Robot Analysis 8 | . . . . . . . 1 . . 1 . . . . . . . . . . . . . . . . . 1 . . . . 4 . . 1 . . . . . Prototype ID Bank 22 | . 2 . 1 . . . . 4 . 2 . . . . 1 . . . 3 . . . . 1 . . . 1 . 1 . . 4 . . 1 . . . 1 . Open Door 10 | . . . . . . . . . . . . 1 . . . . . 1 . . . . . 1 . . . . . . . . . . 1 . . . 5 . 1 Branch Access Points 10 | . . . . . . . 1 . . 1 . . . . . . 1 . . . . . 1 . . . . . . 2 . . . . 1 1 1 . . 1 . Terminal Index 8 | . . . . . . . 1 1 . 1 . . . . . . . . . . 1 . . 1 . . . 1 . 1 . . . . 1 . . . . . . Fabricator Index 6 | . . . . . . . . 1 . 1 . . . . . . . . . . 1 . . . . . . 1 . 1 . . . . 1 . . . . . . Repair Station Index 4 | . . . . . . . . . . . . . . . . . 1 . . . 1 . . . . . . . . 1 . . . . 1 . . . . . . Garrison Index 1 | . . . . . . . . . . . . . . . . . . . . . . . . . . . . 1 . . . . . . . . . . . . . Alert Level 5 | . 1 . . . . . 2 . . . . . . . . . . . . . . . 1 1 . . . . . . . . . . . . . . . . . Unreport Threat 14 | . 2 . 2 . . . 3 . . . . . . . . . . . . . . . 1 1 . . . . . . . . . . . . . . . 5 . Locate Traps 25 | . 2 . 2 . . . 1 2 . 1 . . . . 2 . 4 . . . 3 . 1 1 . . . 3 . . . . . . 1 . . 2 . . . Disarm Traps 2 | . . . . . . . . . . . . . . . . . . . . . . . 1 1 . . . . . . . . . . . . . . . . . Dispatch Records 1 | . . . . . . . . 1 . . . . . . . . . . . . . . . . . . . . . . . . . . . . . . . . . Recall Investigation 2 | . . . . . . . . . . . . . . . . . . . . . . . . . . . . 1 . 1 . . . . . . . . . . . Recall Extermination 5 | . . . . . . . . . . 1 . . . . 1 . 1 . . . 1 . . . . . . . . . . . . . . . . . 1 . . Hauler Manifests 5 | . 1 . . . . . . 1 . . . . . . 1 . . . . . . . 1 . . . . 1 . . . . . . . . . . . . . Registered Components 1 | . . . . . . . . . . . . . . . . . . . . . 1 . . . . . . . . . . . . . . . . . . . . Registered Prototypes 2 | . . . . . . . . 1 . . . . . . . . . . . . 1 . . . . . . . . . . . . . . . . . . . . Zone Layout 27 | . 2 1 . . . . . 2 . 1 . . . . 2 . 3 . . . 5 . . 1 . . . 3 . 1 . . . . 1 . . 1 3 1 . Fabricator Hacks 10 | . . . . . . . . 1 . 3 . . . . . . . . . . . . 2 . . . . 2 . 2 . . . . . . . . . . . Network Status 2 | . . . . . . . . 1 . 1 . . . . . . . . . . . . . . . . . . . . . . . . . . . . . . . Load Schematic 3 | . . . . . . . . . . . . . . . . . . . . . . . 1 . . . . 1 . 1 . . . . . . . . . . . Build 5 | . . . . . . . . . . 2 . . . . . . . . . . . . 1 . . . . 1 . 1 . . . . . . . . . . . Repair Station Hacks 48 | . . . 4 . . . 5 . . 4 . . . . 4 . 8 . . . 7 . 8 . . . . 2 . 4 . . . . 2 . . . . . . Scan Component 25 | . . . 2 . . . 3 . . 2 . . . . 2 . 4 . . . 4 . 4 . . . . 1 . 2 . . . . 1 . . . . . . Repair 23 | . . . 2 . . . 2 . . 2 . . . . 2 . 4 . . . 3 . 4 . . . . 1 . 2 . . . . 1 . . . . . . Recycling Unit Hacks . | . . . . . . . . . . . . . . . . . . . . . . . . . . . . . . . . . . . . . . . . . . Scanalyzer 30 | . . . 2 . . . 6 . . 2 . . . . . . 13 . . . . . . . . . . . . 2 . . . . 1 3 1 . . . . Insert Component 16 | . . . 1 . . . 3 . . 1 . . . . . . 5 . . . . . . . . . . . . 1 . . . . 1 3 1 . . . . Analyze 14 | . . . 1 . . . 3 . . 1 . . . . . . 8 . . . . . . . . . . . . 1 . . . . . . . . . . . Garrison Access Hacks 16 | . . . . . . . 1 1 . 1 . . . . 1 . 3 . . . 2 . 2 . . . 1 . . 1 . . . . . . . 1 1 1 . Seal Access 16 | . . . . . . . 1 1 . 1 . . . . 1 . 3 . . . 2 . 2 . . . 1 . . 1 . . . . . . . 1 1 1 . Unauthorized Hacks 57 | . 3 . . . . . 2 7 . . . . . . 7 . 7 . . . 8 . 3 2 . . . 8 . 3 . . . . 1 . 1 3 2 . . Terminals 57 | . 3 . . . . . 2 7 . . . . . . 7 . 7 . . . 8 . 3 2 . . . 8 . 3 . . . . 1 . 1 3 2 . . Track 25 | . 2 . . . . . 1 2 . . . . . . 2 . 4 . . . 4 . 1 1 . . . 3 . 2 . . . . . . 1 1 1 . . Assimilate 11 | . 1 . . . . . . 3 . . . . . . . . 1 . . . . . 1 . . . . 3 . 1 . . . . 1 . . . . . . Botnet 21 | . . . . . . . 1 2 . . . . . . 5 . 2 . . . 4 . 1 1 . . . 2 . . . . . . . . . 2 1 . . Fabricators . | . . . . . . . . . . . . . . . . . . . . . . . . . . . . . . . . . . . . . . . . . . Repair Stations . | . . . . . . . . . . . . . . . . . . . . . . . . . . . . . . . . . . . . . . . . . . Recycling Units . | . . . . . . . . . . . . . . . . . . . . . . . . . . . . . . . . . . . . . . . . . . Scanalyzers . | . . . . . . . . . . . . . . . . . . . . . . . . . . . . . . . . . . . . . . . . . . Garrison Access . | . . . . . . . . . . . . . . . . . . . . . . . . . . . . . . . . . . . . . . . . . . Data Cores Recovered 7 | . . . 1 . . . . . . 1 . . . . . . 2 . . . . . 1 . . . . . . . . . . . . 1 . 1 . . . Used 4 | . . . 1 . . . . . . . . . . . . . 1 . . . . . . . . . . . . . . . . . . 1 . 1 . . . Hacking Detections 109 | . 3 . 6 . . . 10 8 . 10 . . . . 7 . 11 . . . 9 . 2 2 1 . 1 8 . 7 . . . . 4 3 2 4 5 6 . Full Trace Events 4 | . . . . . . . . . . . . . . . . . . . . . . . 1 . . . . 2 . 1 . . . . . . . . . . . Feedback Events 1 | . . . . . . . . . . . . . . . . . . . . . . . . . . . . 1 . . . . . . . . . . . . . Corruption 1 | . . . . . . . . . . . . . . . . . . . . . . . . . . . . 1 . . . . . . . . . . . . . Feedback Blocked . | . . . . . . . . . . . . . . . . . . . . . . . . . . . . . . . . . . . . . . . . . . Robot Schematics Acquired 9 | . . . . . . . . 2 . . . . 3 . . . . . 4 . . . . . . . . . . . . . . . . . . . . . . Robots Built 2 | . . . . . . . . . . 2 . . . . . . . . . . . . . . . . . . . . . . . . . . . . . . . Authchips . | . . . . . . . . . . . . . . . . . . . . . . . . . . . . . . . . . . . . . . . . . . Time 44 | . . . . . . . . . . 44 . . . . . . . . . . . . . . . . . . . . . . . . . . . . . . . Total Robot Build Rating 8 | . . . . . . . . . . 8 . . . . . . . . . . . . . . . . . . . . . . . . . . . . . . . Part Schematics Acquired 40 | . . . . . . . 3 . . 2 . . 13 . . . 4 . 10 . 1 . . . . . . 2 . 1 . . 4 . . . . . . . . Parts Built 5 | . . . . . . . . . . 2 . . . . . . . . . . . . 1 . . . . 1 . 1 . . . . . . . . . . . Authchips . | . . . . . . . . . . . . . . . . . . . . . . . . . . . . . . . . . . . . . . . . . . Time 284 | . . . . . . . . . . 39 . . . . . . . . . . . . 76 . . . . 58 . 111 . . . . . . . . . . . Total Part Build Rating 35 | . . . . . . . . . . 14 . . . . . . . . . . . . 5 . . . . 7 . 9 . . . . . . . . . . . Parts Repaired 22 | . . . 2 . . . 2 . . 1 . . . . 2 . 4 . . . 3 . 4 . . . . 1 . 2 . . . . 1 . . . . . . Time 937 | . . . 58 . . . 74 . . 81 . . . . 60 . 198 . . . 140 . 121 . . . . 80 . 90 . . . . 35 . . . . . . Parts Recycled . | . . . . . . . . . . . . . . . . . . . . . . . . . . . . . . . . . . . . . . . . . . Recycled Matter . | . . . . . . . . . . . . . . . . . . . . . . . . . . . . . . . . . . . . . . . . . . Retrieved Matter . | . . . . . . . . . . . . . . . . . . . . . . . . . . . . . . . . . . . . . . . . . . Retrieved Components . | . . . . . . . . . . . . . . . . . . . . . . . . . . . . . . . . . . . . . . . . . . Parts Scanalyzed 10 | . . . 1 . . . 3 . . 1 . . . . . . 4 . . . . . . . . . . . . 1 . . . . . . . . . . . Part Schematics Acquired 9 | . . . . . . . 3 . . 1 . . . . . . 4 . . . . . . . . . . . . 1 . . . . . . . . . . . Parts Damaged 1 | . . . . . . . 1 . . . . . . . . . . . . . . . . . . . . . . . . . . . . . . . . . . Bothacking | -11 -10 -10 -9 -9 -9 -8 -8 -7 -7 -7 -7 -7 -7 -6 -6 -6 -6 -6 -6 -5 -5 -5 -5 -5 -5 -5 -5 -4 -4 -4 -4 -4 -4 -3 -3 -3 -2 -2 -2 -1 -1 ------------ Run | Scr Mat Min Mat Min Exi Min Mat Fac Was Fac Low Low Zio Pro Fac Was Fac Low Dat Pro Fac Was Fac Ext Cet Arc Hub Fac Was Fac Upp Upp Zhi Pro Res Qua Res Tes Sec Acc Com Used RIF Installer . | . . . . . . . . . . . . . . . . . . . . . . . . . . . . . . . . . . . . . . . . . . Robots Hacked 6 | . . . . . . . . . . . . . . . . . . . . . . . . 1 . . . . . . . . 3 . 1 . . . . . 1 Non-combat . | . . . . . . . . . . . . . . . . . . . . . . . . . . . . . . . . . . . . . . . . . . Combat 6 | . . . . . . . . . . . . . . . . . . . . . . . . 1 . . . . . . . . 3 . 1 . . . . . 1 Robot Hacks Applied 7 | . . . . . . . . . . . . . . . . . . . . . . . . 1 . . . . . . . . 3 . 1 . . . . . 2 parse_system 7 | . . . . . . . . . . . . . . . . . . . . . . . . 1 . . . . . . . . 3 . 1 . . . . . 2 Relay Couplers Released . | . . . . . . . . . . . . . . . . . . . . . . . . . . . . . . . . . . . . . . . . . . Fabnet Peak Effective % . | . . . . . . . . . . . . . . . . . . . . . . . . . . . . . . . . . . . . . . . . . . Robots Rewired 12 | . . . . . 2 . . . . . 2 . . . . . . . . . . . . 7 1 . . . . . . . . . . . . . . . . Allies Hacked . | . . . . . . . . . . . . . . . . . . . . . . . . . . . . . . . . . . . . . . . . . . Hacks Repelled . | . . . . . . . . . . . . . . . . . . . . . . . . . . . . . . . . . . . . . . . . . . Allies | -11 -10 -10 -9 -9 -9 -8 -8 -7 -7 -7 -7 -7 -7 -6 -6 -6 -6 -6 -6 -5 -5 -5 -5 -5 -5 -5 -5 -4 -4 -4 -4 -4 -4 -3 -3 -3 -2 -2 -2 -1 -1 -------- Run | Scr Mat Min Mat Min Exi Min Mat Fac Was Fac Low Low Zio Pro Fac Was Fac Low Dat Pro Fac Was Fac Ext Cet Arc Hub Fac Was Fac Upp Upp Zhi Pro Res Qua Res Tes Sec Acc Com Total Allies 98 | . 1 4 . . 2 . . 3 20 2 2 . . . . 19 1 . . 1 . 20 1 13 6 . . 1 . 1 . . . . 1 . . . . . . Largest Group 22 | . 1 4 . . 2 2 2 3 20 22 10 9 . . . 19 14 1 1 2 . 20 20 20 17 17 14 7 . 1 . . . . 1 1 . . . . . Highest-Rated Group 1144 | . 10 50 . . 29 29 29 62 485 549 280 239 . . . 702 564 26 26 122 . 720 720 766 1144 1144 926 462 . 45 . . . . 10 10 . . . . . Highest-Rated Ally 159 | . 10 31 . . 21 21 21 26 35 35 32 32 . . . 50 50 26 26 96 . 50 50 159 159 152 96 96 . 45 . . . . 10 10 . . . . . Total Orders . | . . . . . . . . . . . . . . . . . . . . . . . . . . . . . . . . . . . . . . . . . . Ally Attacks 798 | . . 7 . . . 3 19 . 15 162 25 44 . . . 58 20 . . 16 . . 21 194 86 28 74 26 . . . . . . . . . . . . . Total Damage 24669 | . . 66 . . . 55 229 . 318 3277 1186 1100 . . . 3225 473 . . 587 . . 564 4714 2941 896 3024 2014 . . . . . . . . . . . . . Kills 141 | . . 1 . . . 3 2 . . 29 8 13 . . . 8 1 . . 4 . . 3 25 13 4 13 14 . . . . . . . . . . . . . Allies Corrupted 1 | . . . . . . . . . . . . . . . . . 1 . . . . . . . . . . . . . . . . . . . . . . . . Allies Melted . | . . . . . . . . . . . . . . . . . . . . . . . . . . . . . . . . . . . . . . . . . . Intel | -11 -10 -10 -9 -9 -9 -8 -8 -7 -7 -7 -7 -7 -7 -6 -6 -6 -6 -6 -6 -5 -5 -5 -5 -5 -5 -5 -5 -4 -4 -4 -4 -4 -4 -3 -3 -3 -2 -2 -2 -1 -1 ------- Run | Scr Mat Min Mat Min Exi Min Mat Fac Was Fac Low Low Zio Pro Fac Was Fac Low Dat Pro Fac Was Fac Ext Cet Arc Hub Fac Was Fac Upp Upp Zhi Pro Res Qua Res Tes Sec Acc Com Robot Analysis Total 8 | . . . . . . . 1 . . 1 . . . . . . . . . . . . . . . . . 1 . . . . 4 . . 1 . . . . . Derelict Logs Recovered 9 | . . 2 . 2 . . . . . . . 2 . 1 . . . . . 1 . . . . . . . . . . 1 . . . . . . . . . . Drone Launches . | . . . . . . . . . . . . . . . . . . . . . . . . . . . . . . . . . . . . . . . . . . Drone Recoveries . | . . . . . . . . . . . . . . . . . . . . . . . . . . . . . . . . . . . . . . . . . . Exploration | -11 -10 -10 -9 -9 -9 -8 -8 -7 -7 -7 -7 -7 -7 -6 -6 -6 -6 -6 -6 -5 -5 -5 -5 -5 -5 -5 -5 -4 -4 -4 -4 -4 -4 -3 -3 -3 -2 -2 -2 -1 -1 ------------- Run | Scr Mat Min Mat Min Exi Min Mat Fac Was Fac Low Low Zio Pro Fac Was Fac Low Dat Pro Fac Was Fac Ext Cet Arc Hub Fac Was Fac Upp Upp Zhi Pro Res Qua Res Tes Sec Acc Com Turns Passed 27232 | 119 1120 1189 1926 1769 1156 1094 3334 499 277 871 366 935 345 349 433 296 1926 226 57 533 979 92 378 1060 349 97 148 678 24 532 178 144 100 552 472 267 344 231 690 334 763 Spaces Moved 31676 | 57 603 560 581 665 452 442 1200 1317 491 1656 755 1019 1001 621 829 332 3347 604 96 732 1484 185 517 1322 230 155 195 1173 73 849 464 330 199 1012 916 625 806 599 1392 911 879 Core 20 | 15 . . . . . . . . . . . . . . . . . . . . . . . . . . . . . . . . . . . . . . . 1 4 Treads 4545 | 42 603 560 581 665 452 442 1200 . . . . . . . . . . . . . . . . . . . . . . . . . . . . . . . . . . Legs . | . . . . . . . . . . . . . . . . . . . . . . . . . . . . . . . . . . . . . . . . . . Wheels . | . . . . . . . . . . . . . . . . . . . . . . . . . . . . . . . . . . . . . . . . . . Hover 21149 | . . . . . . . . . . . . . 277 621 829 332 3347 604 96 732 1484 185 517 1322 230 155 195 1173 73 849 464 330 199 1012 916 625 806 599 1392 910 875 Flight 5962 | . . . . . . . . 1317 491 1656 755 1019 724 . . . . . . . . . . . . . . . . . . . . . . . . . . . . Fastest Speed 17 | 50 160 160 160 240 240 240 228 26 26 26 30 30 30 38 36 36 30 34 34 34 28 28 28 34 34 34 34 28 28 28 28 28 28 28 28 28 17 18 18 18 29 Average Speed 58 | 131 160 180 239 240 240 240 229 27 26 28 30 30 32 38 36 36 37 34 34 35 31 30 30 34 35 34 34 32 28 31 32 31 30 28 28 28 25 27 27 27 34 Slowest Speed 320 | 160 160 240 320 240 240 240 240 99 26 32 30 30 38 38 40 36 46 34 34 38 34 34 34 34 90 34 34 35 28 35 35 35 35 28 28 28 28 33 28 150 250 Overloaded Moves 237 | . . . . . . . . . . . . . . . . . 6 . . . . . . . . . . . . . . . . . . . 41 6 133 51 . Propulsion Burnouts . | . . . . . . . . . . . . . . . . . . . . . . . . . . . . . . . . . . . . . . . . . . Robots Hopped 5 | . . . . . . . . 2 . 3 . . . . . . . . . . . . . . . . . . . . . . . . . . . . . . . Cave-ins Triggered 4 | . . . . . . . . . . . . . . . . . . . . . . . . . . . . . . . . . . . . . . . . . 4 Exploration Rate (%) 58 | 3 96 99 61 88 90 79 68 32 96 38 92 71 85 64 20 93 67 66 69 72 38 87 14 77 78 96 12 28 77 15 62 46 62 72 20 48 23 53 61 32 27 Regions Visited 41 Branch Regions 23 Pre-discovered Areas 6 | . . . . . . . . . . . . . 1 1 . . . . 1 . . . . . . . . . . . . . 3 . . . . . . . . Known Exits Taken 25 | . . . . . . . . . . 1 1 1 1 1 . . 1 1 1 1 . . 1 1 1 1 1 . . 1 1 1 1 1 1 1 1 1 1 1 . Unknown Exits Taken 8 | 1 1 1 1 1 1 1 1 . . . . . . . . . . . . . . . . . . . . . . . . . . . . . . . . . . Scrap Searched 30 | . . 2 . 2 . 2 . . . . 4 5 4 1 . . . 4 . 2 . . . . . . . . . . 1 2 . 1 . . . . . . . Spaces Dug 309 | . . . . . . . . 12 . 12 . 14 . 1 18 . 34 2 . 12 37 . 3 8 . . 9 37 . 11 1 4 . 21 12 6 11 3 13 4 24 Terrain Destroyed 890 | . . . 22 68 . . 20 12 162 12 . 14 . 150 18 50 57 2 . 26 37 . 3 8 60 1 9 37 . 11 1 4 . 21 12 6 11 3 13 4 36 Melee 309 | . . . . . . . . 12 . 12 . 14 . 1 18 . 34 2 . 12 37 . 3 8 . . 9 37 . 11 1 4 . 21 12 6 11 3 13 4 24 Projectile 18 | . . . . . . . . . . . . . . 5 . . . . . . . . . . . 1 . . . . . . . . . . . . . . 12 AOE 562 | . . . 22 68 . . 20 . 162 . . . . 144 . 50 23 . . 13 . . . . 60 . . . . . . . . . . . . . . . . Terrain Rammed . | . . . . . . . . . . . . . . . . . . . . . . . . . . . . . . . . . . . . . . . . . . Walls Destroyed . | . . . . . . . . . . . . . . . . . . . . . . . . . . . . . . . . . . . . . . . . . . Machines Disabled . | . . . . . . . . . . . . . . . . . . . . . . . . . . . . . . . . . . . . . . . . . . Actions | -11 -10 -10 -9 -9 -9 -8 -8 -7 -7 -7 -7 -7 -7 -6 -6 -6 -6 -6 -6 -5 -5 -5 -5 -5 -5 -5 -5 -4 -4 -4 -4 -4 -4 -3 -3 -3 -2 -2 -2 -1 -1 --------- Run | Scr Mat Min Mat Min Exi Min Mat Fac Was Fac Low Low Zio Pro Fac Was Fac Low Dat Pro Fac Was Fac Ext Cet Arc Hub Fac Was Fac Upp Upp Zhi Pro Res Qua Res Tes Sec Acc Com Total 38370 | 80 687 703 853 785 506 466 1548 1436 604 1983 891 1618 1023 715 916 503 3856 620 119 954 1889 220 728 1892 481 195 245 1401 76 1077 485 361 228 1240 1103 699 883 653 1570 961 1117 Wait 4718 | . 19 117 72 77 . 20 130 58 76 291 133 579 3 75 58 163 302 8 24 172 324 22 188 514 234 38 30 173 . 199 16 27 . 206 153 43 17 27 56 24 50 Move 31628 | 56 602 559 580 664 451 441 1199 1313 490 1649 754 1018 1000 620 829 331 3346 603 95 731 1484 184 516 1321 229 154 194 1173 72 848 463 329 198 1011 915 624 805 598 1391 910 878 Hop 5 | . . . . . . . . 2 . 3 . . . . . . . . . . . . . . . . . . . . . . . . . . . . . . . Pick Up 201 | 6 16 1 26 2 3 . 30 6 1 3 . 1 5 . 3 1 16 2 . 3 5 1 5 . . . . 3 2 4 . . 2 . 4 8 10 4 15 2 11 Fast Attach 118 | 4 4 1 3 1 1 . 4 5 . 4 1 1 3 1 3 2 16 2 . . 4 5 5 3 1 . . 3 . 2 2 . 6 . 3 1 2 4 8 3 10 Attach 98 | 2 . . 11 1 . . 6 12 . 1 . 1 3 1 2 . 7 1 . 2 2 . . . . . . 2 . . . . 1 . 2 . 4 4 10 5 18 Detach 12 | . . . . . . . . . . . . . . . . . 1 . . . . 1 . . . . . . . . . . . . . . 3 2 . 2 3 Swap 109 | . 3 3 10 8 3 . 25 1 . . . 1 . . 1 . 15 . . 2 5 . 2 3 6 . . 1 . 2 . . 5 . 3 4 1 . 2 . 3 Drop 229 | 2 7 3 15 1 4 . 33 25 1 2 . 2 8 1 1 2 22 2 . 1 3 7 6 3 1 . . 3 2 4 2 . 7 . 5 8 9 8 16 1 12 Fire 555 | 10 36 19 136 31 9 5 121 . 36 . . . . 16 . 4 44 . . 30 10 . . 2 5 3 8 3 . . . . . 1 2 . . . 2 . 22 Melee 619 | . . . . . . . . 14 . 30 3 15 1 1 19 . 71 2 . 13 52 . 6 21 4 . 13 40 . 18 2 5 9 22 16 11 32 6 70 14 109 Ram . | . . . . . . . . . . . . . . . . . . . . . . . . . . . . . . . . . . . . . . . . . . Kick . | . . . . . . . . . . . . . . . . . . . . . . . . . . . . . . . . . . . . . . . . . . Crush . | . . . . . . . . . . . . . . . . . . . . . . . . . . . . . . . . . . . . . . . . . . Escape Stasis 17 | . . . . . . . . . . . . . . . . . 16 . . . . . . . . . . . . . . . . . . . . . . . 1 Rewire 61 | . . . . . 35 . . . . . . . . . . . . . . . . . . 25 1 . . . . . . . . . . . . . . . . Trap . | . . . . . . . . . . . . . . . . . . . . . . . . . . . . . . . . . . . . . . . . . . Miscellaneous . | . . . . . . . . . . . . . . . . . . . . . . . . . . . . . . . . . . . . . . . . . . Route ------- -11/Scrapyard -10/Materials (discovered 4 exits: *Mat x3 / *Min) -10/Mines (discovered 2 exits: *Mat x2) -9/Materials (discovered 2 exits: *Mat / *Min) -9/Mines (discovered 4 exits: *Mat x2 / *Exi / *Zio) -9/Exiles -8/Mines -8/Materials -7/Factory (discovered 3 exits: *Fac / *Sto / *Low) -7/Waste -7/Factory (discovered 5 exits: *Fac / Sto x2 / *Low x2) -7/Lower Caves -7/Lower Caves (discovered 2 exits: *Fac / *Zio) -7/Zion -6/Proximity Caves -6/Factory -6/Waste -6/Factory (discovered 4 exits: *Fac x2 / *Low x2) -6/Lower Caves -6/Data Miner -5/Proximity Caves -5/Factory (discovered 2 exits: *Fac / Upp) -5/Waste -5/Factory (discovered 4 exits: Upp x2 / *Ext x2) -5/Extension (discovered 3 exits: *Fac x2 / *Cet) -5/Cetus (discovered 2 exits: *Fac / *Arc) -5/Archives (discovered 3 exits: *Fac / *Hub x2) -5/Hub_04(d) -4/Factory (discovered 2 exits: *Res / *Upp) -4/Waste -4/Factory (discovered 3 exits: *Upp x2 / Arm) -4/Upper Caves -4/Upper Caves -4/Zhirov -3/Proximity Caves -3/Research (discovered 2 exits: *Qua x2) -3/Quarantine -2/Research (discovered 2 exits: *Tes x2) -2/Testing (discovered 2 exits: *Acc / *Sec) -2/Section 7 -1/Access -1/Command To Epsilon Eridani History --------- Turn | Location | Event 9 | -11/Scrapyard | Discovered new exit (range 16) 120 | -11/Scrapyard | Entered Materials 317 | -10/Materials | Build established: Mutant 327 | -10/Materials | Discovered new exit (range 5) 469 | -10/Materials | Destroyed 7 combat bots 550 | -10/Materials | Discovered new exit (range 7) 696 | -10/Materials | Discovered new exit (range 15) 855 | -10/Materials | Discovered new exit (range 10) 1240 | -10/Materials | Entered Mines 1240 | -10/Mines | Accompanied by 1 ally 1253 | -10/Mines | Assisted by bots powering up and referring to "LRC-V3" 1548 | -10/Mines | Build established: Commander-Mutant 1600 | -10/Mines | Destroyed YI-UF0 1603 | -10/Mines | Discovered new exit (range 16) 1838 | -10/Mines | Received a Mining Laser from a helpful Derelict 1845 | -10/Mines | Learned Materials garrison access intel 1883 | -10/Mines | Build established: Mutant 1936 | -10/Mines | Discovered new exit (range 6) 2429 | -10/Mines | Entered Materials 2429 | -9/Materials | Evolved 2 slots: Propulsion x1, Utility x1 2537 | -9/Materials | Repaired Hvy. Assault Rifle 2564 | -9/Materials | Repaired Lgt. Treads 3485 | -9/Materials | Core integrity fell below 50% 3514 | -9/Materials | Build established: Scavenger-Mutant 3629 | -9/Materials | First assault squad dispatched 3900 | -9/Materials | Discovered new exit (range 16) 4336 | -9/Materials | Discovered new exit (range 7) 4355 | -9/Materials | Entered Mines 4561 | -9/Mines | Learned Materials security intel 4700 | -9/Mines | Discovered new exit (range 9) 4779 | -9/Mines | Deemed a non-threat by the Exiles lab entrance 4853 | -9/Mines | Learned Materials emergency access door positions 5247 | -9/Mines | Discovered new exit (range 9) 5680 | -9/Mines | A Derelict revealed a hidden shortcut to a safe place 5723 | -9/Mines | Excavation squad dispatched 5723 | -9/Mines | A large section of the Mines collapsed 5850 | -9/Mines | Core integrity fell below 20% 6112 | -9/Mines | Discovered new exit (range 5) 6124 | -9/Mines | Entered Exiles 6124 | -9/Exiles | Found Exiles lab destroyed 6391 | -9/Exiles | Opened EX-Vault 6408 | -9/Exiles | Found Prototype Leg 6408 | -9/Exiles | Identified Potential Leg 6417 | -9/Exiles | Found Potential Leg 6720 | -9/Exiles | Build established: Mutant 7258 | -9/Exiles | Discovered new exit (range 10) 7280 | -9/Exiles | Entered Mines 7280 | -8/Mines | Accompanied by 2 allies 8347 | -8/Mines | Discovered new exit (range 6) 8374 | -8/Mines | Entered Materials 8374 | -8/Materials | Accompanied by 2 allies 8374 | -8/Materials | Evolved 2 slots: Propulsion x1, Utility x1 8377 | -8/Materials | Loaded intel: 1 garrison access location 8787 | -8/Materials | Garrison activated, responded to threat 10363 | -8/Materials | Discovered new exit (range 16) 10715 | -8/Materials | Repaired Broken Seismic Detector 10754 | -8/Materials | Repaired Adv. Treads 10899 | -8/Materials | Core integrity fell below 50% 11708 | -8/Materials | Entered Factory 11708 | -7/Factory | Evolved 2 slots: Utility x2 11750 | -7/Factory | Discovered new exit (range 16) 11759 | -7/Factory | Identified exit to Storage 11952 | -7/Factory | Discovered new exit (range 15) 11979 | -7/Factory | Discovered new exit (range 6) 11980 | -7/Factory | Identified exit to Lower Caves 12035 | -7/Factory | Build established: Hacker-Sprinter 12207 | -7/Factory | Sucked down chute 12207 | -7/Factory | Entered Waste 12208 | -7/Waste | Met a frightened Derelict 12216 | -7/Waste | Spotted C-40 Crusher 12218 | -7/Waste | Spotted C-40 Crusher 12246 | -7/Waste | Destroyed C-40 Crusher 12246 | -7/Waste | Destroyed C-40 Crusher 12252 | -7/Waste | Spotted C-40 Crusher 12281 | -7/Waste | Destroyed C-40 Crusher 12283 | -7/Waste | Destroyed C-40 Crusher 12285 | -7/Waste | Spotted C-40 Crusher 12290 | -7/Waste | Destroyed C-40 Crusher 12299 | -7/Waste | Spotted C-40 Crusher 12305 | -7/Waste | 2 allies followed down the chute 12398 | -7/Waste | Destroyed C-40 Crusher 12426 | -7/Waste | Discovered new exit (range 14) 12430 | -7/Waste | Warlord forces began an assault 12452 | -7/Waste | Identified exit to Factory 12484 | -7/Waste | Entered Factory 12484 | -7/Factory | Accompanied by 20 allies 12603 | -7/Factory | Fabricated Y-54 Guardian? 12676 | -7/Factory | Fabricated Imp. Antigrav System? 12827 | -7/Factory | Garrison activated, responded to threat 12864 | -7/Factory | Discovered new exit (range 6) 12872 | -7/Factory | Identified exit to Factory 13016 | -7/Factory | Repaired Imp. Flight Unit 13355 | -7/Factory | Entered Lower Caves 13355 | -7/Lower Caves | Accompanied by 10 allies 13476 | -7/Lower Caves | Attracted the attention of an 0b10 outpost 13586 | -7/Lower Caves | Discovered new exit (range 8) 13589 | -7/Lower Caves | Identified exit to Lower Caves 13721 | -7/Lower Caves | Entered another Lower Caves area 13721 | -7/Lower Caves | Accompanied by 9 allies 13747 | -7/Lower Caves | Discovered exit to Factory (range 14) 13847 | -7/Lower Caves | Learned Factory interactive machine intel 13959 | -7/Lower Caves | Learned location of 1 exit from Factory 14127 | -7/Lower Caves | Discovered new exit (range 8) 14129 | -7/Lower Caves | Identified exit to Zion 14656 | -7/Lower Caves | Entered Zion 14708 | -7/Zion | Discovered new exit (range 12) 14720 | -7/Zion | Given A8's code to call for help 14761 | -7/Zion | Given the Hacking Drone Bay 14762 | -7/Zion | Found Prototype Device 14762 | -7/Zion | Identified Hacking Drone Bay 14795 | -7/Zion | Learned location of Armory (-4) 14798 | -7/Zion | Found CR-A16's Pointy Stick 14887 | -7/Zion | Found Prototype Special Weapon 14887 | -7/Zion | Identified RU-N14's Throwing Claymores 14894 | -7/Zion | Found RU-N14's Throwing Claymores 14895 | -7/Zion | Found RU-N14's Throwing Claymores 14896 | -7/Zion | Found RU-N14's Throwing Claymores 15001 | -7/Zion | Identified exit to Proximity Caves 15001 | -7/Zion | Entered Proximity Caves 15050 | -6/Proximity Caves | Learned location of Extension (-5) 15145 | -6/Proximity Caves | Spotted B-75 Beast 15179 | -6/Proximity Caves | Build established: Hacker-Mutant 15346 | -6/Proximity Caves | Discovered exit to Factory (range 11) 15350 | -6/Proximity Caves | Entered Factory 15350 | -6/Factory | Evolved 2 slots: Propulsion x1, Utility x1 15351 | -6/Factory | Identified exit to Factory 15352 | -6/Factory | Loaded intel: 52 interactive machine locations 15661 | -6/Factory | Repaired Aerolev Unit 15692 | -6/Factory | Repaired Aerolev Unit 15783 | -6/Factory | Sucked down chute 15783 | -6/Factory | Entered Waste 15798 | -6/Waste | Destroyed C-40 Crusher 15864 | -6/Waste | Spotted C-40 Crusher 15873 | -6/Waste | Destroyed C-40 Crusher 15877 | -6/Waste | Spotted C-40 Crusher 15884 | -6/Waste | Destroyed C-40 Crusher 15899 | -6/Waste | Spotted C-40 Crusher 15914 | -6/Waste | Spotted C-40 Crusher 15940 | -6/Waste | Warlord forces began an assault 15975 | -6/Waste | Allies destroyed C-40 Crusher 15982 | -6/Waste | Allies destroyed C-40 Crusher 15983 | -6/Waste | Allies destroyed C-40 Crusher 16036 | -6/Waste | Discovered new exit (range 12) 16052 | -6/Waste | Identified exit to Factory 16079 | -6/Waste | Entered Factory 16079 | -6/Factory | Accompanied by 14 allies 16117 | -6/Factory | Identified exit to Lower Caves 16416 | -6/Factory | Discovered exit to Factory (range 10) 16690 | -6/Factory | Repaired Cld. Airjet 16751 | -6/Factory | Repaired Aerolev Unit? 16903 | -6/Factory | Repaired Broken Lrn. Sensor Array? 16952 | -6/Factory | Discovered exit to Factory (range 10) 17681 | -6/Factory | Repaired Adv. Sensor Array 18005 | -6/Factory | Entered Lower Caves 18005 | -6/Lower Caves | Accompanied by 1 ally 18061 | -6/Lower Caves | Found Alien Artifact 18061 | -6/Lower Caves | Identified Core Expander 18061 | -6/Lower Caves | Installed Core Expander, added new Utility slot 18108 | -6/Lower Caves | Encountered a Warlord checkpoint 18157 | -6/Lower Caves | A Derelict revealed a hidden shortcut to meet someone special 18161 | -6/Lower Caves | Identified exit to Data Miner 18231 | -6/Lower Caves | Entered Data Miner 18231 | -6/Data Miner | Accompanied by 1 ally 18231 | -6/Data Miner | Discovered new exit (range 6) 18238 | -6/Data Miner | Met Data Miner 18250 | -6/Data Miner | Learned location of Section 7 (-2) 18250 | -6/Data Miner | Acquired the access code to Warlord's prototype stash 18255 | -6/Data Miner | Received God Mode back door access code from Data Miner 18263 | -6/Data Miner | Identified exit to Proximity Caves 18288 | -6/Data Miner | Entered Proximity Caves 18288 | -5/Proximity Caves | Accompanied by 1 ally 18327 | -5/Proximity Caves | Escorted by Enhanced Grunt 18572 | -5/Proximity Caves | Attracted the attention of an 0b10 checkpoint 18821 | -5/Proximity Caves | Entered Factory 18821 | -5/Factory | Evolved 2 slots: Power x1, Propulsion x1 18900 | -5/Factory | Discovered new exit (range 6) 18902 | -5/Factory | Identified exit to Factory 19071 | -5/Factory | Discovered new exit (range 17) 19186 | -5/Factory | Build established: Hacker-Sprinter 19230 | -5/Factory | Repaired Cld. Airjet 19266 | -5/Factory | Repaired Imp. Airjet 19702 | -5/Factory | Repaired Imp. Airjet 19786 | -5/Factory | Cargo convoy interrupted 19800 | -5/Factory | Manually triggered Chute Trap 19800 | -5/Factory | Sucked down chute 19800 | -5/Factory | Entered Waste 19801 | -5/Waste | Joined by Warlord forces that had cleared the area 19834 | -5/Waste | Found Prototype Device 19834 | -5/Waste | Identified Exp. Terrain Scanner 19843 | -5/Waste | Discovered new exit (range 11) 19852 | -5/Waste | Found Prototype Reactor 19852 | -5/Waste | Identified Vortex Chain Reactor 19874 | -5/Waste | Identified exit to Factory 19892 | -5/Waste | Entered Factory 19892 | -5/Factory | Accompanied by 20 allies 20000 | -5/Factory | Repaired Hyb. Fission Core 20042 | -5/Factory | Repaired Cld. Aerolev Unit 20050 | -5/Factory | Identified exit to Upper Caves 20050 | -5/Factory | Identified exit to Extension 20091 | -5/Factory | Repaired Linear Gravjet 20121 | -5/Factory | Repaired Hyp. Gauss Cannon 20238 | -5/Factory | Fabricated Lgt. Regenerative Plating (x1) 20270 | -5/Factory | Entered Extension 20270 | -5/Extension | Accompanied by 20 allies 20375 | -5/Extension | Spotted B-75 Beast 20382 | -5/Extension | Allies destroyed B-75 Beast 20391 | -5/Extension | Spotted B-75 Beast 20401 | -5/Extension | Allies destroyed B-75 Beast 20407 | -5/Extension | Discovered exit to Factory (range 3) 20454 | -5/Extension | Build established: Hacker-Mutant 20729 | -5/Extension | Rescued A7 20990 | -5/Extension | Rescued a captive Derelict 21029 | -5/Extension | Rescued a captive Derelict 21029 | -5/Extension | Rescued a captive Derelict 21101 | -5/Extension | Discovered exit to Factory (range 10) 21102 | -5/Extension | Discovered new exit (range 6) 21180 | -5/Extension | Enhanced Grunt warped into view, answering call for help 21195 | -5/Extension | Enhanced Grunt warped into view, answering call for help 21265 | -5/Extension | Identified exit to Cetus 21330 | -5/Extension | Entered Cetus 21330 | -5/Cetus | Accompanied by 17 allies (A7) 21335 | -5/Cetus | Acquired a Cetus Manufacturing Module code from A7 21354 | -5/Cetus | Spotted Cetus Guard 21354 | -5/Cetus | Spotted Cetus Guard 21355 | -5/Cetus | Spotted Cetus Guard 21362 | -5/Cetus | Spotted Cetus Guard 21363 | -5/Cetus | Allies destroyed Cetus Guard 21370 | -5/Cetus | Allies destroyed Cetus Guard 21374 | -5/Cetus | Allies destroyed Cetus Guard 21376 | -5/Cetus | Allies destroyed Cetus Guard 21408 | -5/Cetus | Escorted A7 to Cetus Mainframe 21411 | -5/Cetus | Started Cetus Manufacturing Module 21436 | -5/Cetus | Manufactured an Enhanced Grunt 21461 | -5/Cetus | Manufactured an Enhanced Grunt 21486 | -5/Cetus | Manufactured an Enhanced Grunt 21511 | -5/Cetus | Manufactured an Enhanced Grunt 21536 | -5/Cetus | Manufactured an Enhanced Grunt 21546 | -5/Cetus | Discovered new exit (range 15) 21605 | -5/Cetus | Spotted Cetus Guard 21605 | -5/Cetus | Spotted Cetus Guard 21605 | -5/Cetus | Spotted Cetus Guard 21605 | -5/Cetus | Spotted Cetus Guard 21613 | -5/Cetus | Discovered exit to Factory (range 16) 21616 | -5/Cetus | Allies destroyed Cetus Guard 21618 | -5/Cetus | Allies destroyed Cetus Guard 21618 | -5/Cetus | Rewired Cetus Guard 21618 | -5/Cetus | Allies destroyed Cetus Guard 21619 | -5/Cetus | Met Revision 17 21636 | -5/Cetus | Identified exit to Archives 21679 | -5/Cetus | Entered Archives 21679 | -5/Archives | Accompanied by 17 allies (A7) 21684 | -5/Archives | Received a hacking code to weaken MAIN.C 21705 | -5/Archives | Unable to access archive contents 21706 | -5/Archives | Discovered new exit (range 16) 21719 | -5/Archives | Unable to access archive contents 21720 | -5/Archives | Discovered new exit (range 13) 21729 | -5/Archives | Discovered exit to Factory (range 16) 21744 | -5/Archives | Identified exit to Hub_04(d) 21776 | -5/Archives | Entered Hub_04(d) 21776 | -5/Hub_04(d) | Accompanied by 14 allies 21898 | -5/Hub_04(d) | Discovered exit to Factory (range 12) 21924 | -5/Hub_04(d) | Entered Factory 21924 | -4/Factory | Accompanied by 7 allies 21924 | -4/Factory | Evolved 2 slots: Propulsion x1, Utility x1 22123 | -4/Factory | Spotted B-86 Titan 22168 | -4/Factory | Repaired Cld. Aerolev Unit 22265 | -4/Factory | Fabricated Lrn. Sensor Array (x1) 22397 | -4/Factory | Discovered new exit (range 8) 22399 | -4/Factory | Identified exit to Upper Caves 22470 | -4/Factory | Discovered new exit (range 5) 22503 | -4/Factory | Incoming investigation squad redirected 22512 | -4/Factory | Identified exit to Research 22602 | -4/Factory | Sucked down chute 22602 | -4/Factory | Entered Waste 22604 | -4/Waste | Spotted C-40 Crusher 22606 | -4/Waste | Spotted C-40 Crusher 22607 | -4/Waste | Found Prototype Device 22615 | -4/Waste | Spotted C-40 Crusher 22617 | -4/Waste | EMP discharged 22618 | -4/Waste | Spotted C-40 Crusher 22620 | -4/Waste | Spotted C-40 Crusher 22623 | -4/Waste | Discovered new exit (range 10) 22624 | -4/Waste | Spotted C-40 Crusher 22625 | -4/Waste | Identified exit to Factory 22626 | -4/Waste | Entered Factory 22626 | -4/Factory | Identified Exp. Force Field 22649 | -4/Factory | Build established: Hacker-Sprinter 22707 | -4/Factory | Identified exit to Armory 22893 | -4/Factory | Fabricated Exp. Force Field? 22973 | -4/Factory | Repaired Cmb. Linear Gravjet 23105 | -4/Factory | Repaired Hyb. Fission Core 23126 | -4/Factory | Build established: Hacker-Mutant 23158 | -4/Factory | Entered Upper Caves 23169 | -4/Upper Caves | Identified exit to Upper Caves 23203 | -4/Upper Caves | Encountered a Warlord checkpoint 23336 | -4/Upper Caves | Entered another Upper Caves area 23477 | -4/Upper Caves | Discovered new exit (range 4) 23479 | -4/Upper Caves | Identified exit to Zhirov 23480 | -4/Upper Caves | Entered Zhirov 23480 | -4/Zhirov | Discovered new exit (range 3) 23487 | -4/Zhirov | Met Zhirov 23495 | -4/Zhirov | Learned location of Quarantine (-3) 23495 | -4/Zhirov | Learned location of Testing (-2) 23495 | -4/Zhirov | Learned location of Command (-1) 23502 | -4/Zhirov | Zhirov requested help retrieving the SGEMP Prototype 23508 | -4/Zhirov | Found Alien Artifact 23508 | -4/Zhirov | Identified Integrated Reactor 23508 | -4/Zhirov | Installed Integrated Reactor, increased core energy generation (+10) 23534 | -4/Zhirov | Found Alien Artifact 23580 | -4/Zhirov | Identified exit to Proximity Caves 23580 | -4/Zhirov | Entered Proximity Caves 23821 | -3/Proximity Caves | Build established: Hacker-Sprinter 24131 | -3/Proximity Caves | Discovered exit to Research (range 5) 24132 | -3/Proximity Caves | Entered Research 24132 | -3/Research | Evolved 2 slots: Utility x2 24236 | -3/Research | Identified Transdimensional Reconstructor 24332 | -3/Research | Revision forces began assault on 0b10 24401 | -3/Research | Discovered new exit (range 8) 24419 | -3/Research | Identified exit to Quarantine 24456 | -3/Research | Met up with Revision 17++ 24591 | -3/Research | Repaired Imp. Airjet 24604 | -3/Research | Entered Quarantine 24604 | -3/Quarantine | Accompanied by 1 ally 24652 | -3/Quarantine | Found Prototype Device 24655 | -3/Quarantine | Identified Exp. Focal Shield 24684 | -3/Quarantine | Found Alien Artifact 24690 | -3/Quarantine | Identified Core Reset Matrix 24781 | -3/Quarantine | Found Alien Artifact 24796 | -3/Quarantine | Found Alien Artifact 24811 | -3/Quarantine | Identified Terrabomb 24811 | -3/Quarantine | Identified Subatomic Replicator 24839 | -3/Quarantine | Discovered new exit (range 7) 24853 | -3/Quarantine | Found Alien Slashing Weapon 24867 | -3/Quarantine | Found Alien Impact Weapon 24871 | -3/Quarantine | Identified exit to Research 24871 | -3/Quarantine | Entered Research 24871 | -2/Research | Evolved 2 slots: Propulsion x1, Utility x1 24875 | -2/Research | Identified Sigix Broadsword 25188 | -2/Research | Identified exit to Testing 25215 | -2/Research | Entered Testing 25329 | -2/Testing | Found Prototype Hackware 25329 | -2/Testing | Identified System Mapper 25341 | -2/Testing | Found Prototype Energy Cannon 25342 | -2/Testing | Identified Disintegrator 25357 | -2/Testing | Spotted PP-1QYW9RA7YX 25364 | -2/Testing | Discovered new exit (range 16) 25369 | -2/Testing | Identified exit to Access 25384 | -2/Testing | Found Prototype Energy Gun 25410 | -2/Testing | Spotted Fortress 25429 | -2/Testing | Discovered new exit (range 5) 25430 | -2/Testing | Identified exit to Section 7 25431 | -2/Testing | Identified Core Stripper 25433 | -2/Testing | Identified Hyp. EM Gauss Rifle 25446 | -2/Testing | Entered Section 7 25464 | -2/Section 7 | Spotted B-90 Cyclops 25634 | -2/Section 7 | Build established: Wizard-Sprinter 25766 | -2/Section 7 | Found Integrated Reactor 25766 | -2/Section 7 | Installed Integrated Reactor, increased core energy generation (+10) 25771 | -2/Section 7 | Discovered exit to Access (range 15) 25777 | -2/Section 7 | Spotted S7 Guard 25816 | -2/Section 7 | Spotted B-99 Colossus 25828 | -2/Section 7 | Found Alien Artifact 25829 | -2/Section 7 | Identified Integrity Redistributor 25829 | -2/Section 7 | Used Integrity Redistributor, redistributed integrity from core (-83) 25832 | -2/Section 7 | Found Integrity Redistributor 25834 | -2/Section 7 | Found Integrity Redistributor 25844 | -2/Section 7 | Found Alien Artifact 25844 | -2/Section 7 | Identified LRC Insulator 25844 | -2/Section 7 | Installed LRC Insulator, gained EM resistance (25) 25847 | -2/Section 7 | Found Alien Artifact 25847 | -2/Section 7 | Identified LRC Boosters 25847 | -2/Section 7 | Installed LRC Boosters, increased mass support (+10) 25849 | -2/Section 7 | Found LRC Boosters 25849 | -2/Section 7 | Installed LRC Boosters, increased mass support (+10) 25948 | -2/Section 7 | Found Transdimensional Reconstructor 26121 | -2/Section 7 | Found Alien Artifact 26136 | -2/Section 7 | Entered Access 26136 | -1/Access | Evolved 2 slots: Utility x2 26136 | -1/Access | Identified Core Regenerator 26136 | -1/Access | Used Core Regenerator, restored core integrity (+0) 26267 | -1/Access | Identified exit to Command 26287 | -1/Access | Spotted B-99 Colossus 26386 | -1/Access | Search patrols dispatched 26469 | -1/Access | Used Integrity Redistributor, redistributed integrity from core (-113) 26470 | -1/Access | Entered Command 26724 | -1/Command | Spotted M Guard 26724 | -1/Command | Spotted M Guard 26724 | -1/Command | Spotted Combat Programmer 26729 | -1/Command | Spotted Combat Programmer 26753 | -1/Command | Crushed by falling debris 26768 | -1/Command | System corruption reached 10% 26784 | -1/Command | Crushed by falling debris 26837 | -1/Command | Used Subatomic Replicator to replicate Integrity Redistributor 26858 | -1/Command | Met MAIN.C 26861 | -1/Command | 0b10 Conduit disabled 26891 | -1/Command | Used Integrity Redistributor, redistributed integrity from core (-140) 26965 | -1/Command | MAIN.C activated Command garrisons 26984 | -1/Command | Lost 9 parts (2p3n4u) 27020 | -1/Command | Crushed by falling debris 27058 | -1/Command | Crushed by falling debris 27077 | -1/Command | Found Zero-point Reactor 27079 | -1/Command | Found Prototype Device 27079 | -1/Command | Identified Exp. ECM Suite 27082 | -1/Command | Found Prototype Device 27082 | -1/Command | Identified Exp. Phase Shifter 27084 | -1/Command | Found Prototype Device 27084 | -1/Command | Identified Femtoactuators 27086 | -1/Command | Found Prototype Device 27086 | -1/Command | Identified Exp. System Purifier 27088 | -1/Command | Found Prototype Device 27088 | -1/Command | Identified Adv. Kinecellerator 27102 | -1/Command | Found Prototype Energy Cannon 27103 | -1/Command | Identified Cld. Nova Cannon 27107 | -1/Command | Used Integrity Redistributor, redistributed integrity from core (-139) 27128 | -1/Command | Build established: Hacker-Mutant 27198 | -1/Command | Discovered new exit (range 9) 27202 | -1/Command | Identified exit to Surface 27213 | -1/Command | Core integrity fell below 50% 27233 | *** | Escaped! Last Messages --------------- 27204_ Point Defense Array destroyed. 27208_ S-43 Plague destroyed. 27215_ Adv. Hacking Suite destroyed. 27216_ L 27233_ Penetrated by Slug. Map ----- +----------------------------------------------------+ | ?????????????????????????????? | | ?????????????????????????????? | | ?????????????????????????????????????# !!! ##" | | ?????????????????????????????????????# !! #### | | ?????????????????????????????????????# !! #??? | | ?????????????????????????????????????# #??? | | ?????????????????????????????????????# #??? | | ?????????????????????????????????????# " #??? | | ??????????????????????????########???#"%" #??? | | ??????????????????????????#= ??# " #??? | | ??????????????????????????? ??# #??? | | ???????????????????????????? "" !## #??? | | ???????????????????????????? """" # #### | | ???????????????????????????? """" + | | ??????????????????????????# "" " | | ??????????????????????????# " "######## | | ??????????????????????????# ?# [ #%#"###### | | ???????????????????????##?#########?# %=" % #[ [ | | ???????????????????????# #########==%+ %= #] ] | | ???????????????????????+ =="*%* # !! | | ???????????????????????# =%=[= # | | ???????????????????????# ####### #* #### | | ?????????????????????????????#????# # #??? | | ???????????????????????#######! ??# # #??? | | ???????????????????????# ## # #######??? | | ???????????????????????# @] ##!! / #?????? | | ???????????????????????# ]= ##! # ######+#?????? | | ???????????????????????###gg## ?# #????????????? | | ?????????????????????????"gs;# ??# #????????????? | | ?????????????????????????#%g;# ???# #????????????? | | ?????????????????????????#h[##????# #????????????? | | ?????????????????????????#%%####### ####+#???????? | | ?????????????????????????# h #???????? | | ?????????????????????????# #???????? | | ?????????????????????????#"######### #???????? | | ?????????????????????????? ????????? #???????? | | ?????????????????????????? ????????? #???????? | | ?????????????????????????? ????????? #???????? | | ?????????????????????????? ????????? +???????? | | ?????????????????????????? ????????? ##???????? | | ??????????????????????????"????????? #????????? | | ??????????????????????????#????????? #????????? | | ?????????????????????????????????????##+#????????? | | ?????????????????????????????????????????????????? | | ?????????????????????????????????????????????????? | | ?????????????????????????????????????????????????? | | ?????????????????????????????????????????????????? | | ?????????????????????????????????????????????????? | | ?????????????????????????????????????????????????? | | ?????????????????????????????????????????????????? | +----------------------------------------------------+ Best States ------------- Heat Dissipation 71 Energy Generation 89 Energy Capacity 970 Matter Stores 300 Matter Capacity 300 Sight Range 22 Robot Scan Range 18 Terrain Scan Density 10 ECM Strength 3 Power Amplification 40 Additional Mass Support 12 Armor Coverage 675 Resistance: KI 30 Resistance: EM 25 Point Defense Rating 160 Melee Speed Boost 50 Phase Shifting 20 Evasion (%) 75 Melee Accuracy 8 Recoil Reduction 4 Particle Charging 20 Kinecelleration 50 Offensive Hacking 74 Defensive Hacking 21 Item Schematics ----------------- Mak. Hacking Suite | -8/Materials | Scanalyzed Seismic Detector | -8/Materials | Scanalyzed Imp. Flight Unit | -8/Materials | Scanalyzed Imp. System Restoration Module | -7/Factory | Hacked Adv. Shield Generator | -7/Factory | Scanalyzed Lrn. Missile Launcher | -7/Zion | Archive Recalibrator | -7/Zion | Archive Weapon Cycler | -7/Zion | Archive 0b10 Decoder Chip [Scout] | -7/Zion | Archive Mak. Trap Scanner | -7/Zion | Archive Mak. Terrain Scan Processor | -7/Zion | Archive Fission Core | -7/Zion | Archive Med. Treads | -7/Zion | Archive Matter Compressor | -7/Zion | Archive Imp. Medium Armor Plating | -7/Zion | Archive Imp. Particle Charger | -7/Zion | Archive Imp. Reaction Control System | -7/Zion | Archive Mak. Spear | -7/Zion | Archive Lrn. Sensor Array | -6/Factory | Scanalyzed Hacking Suite | -6/Factory | Scanalyzed Cld. Aerolev Unit | -6/Factory | Scanalyzed Imp. Airjet | -6/Factory | Scanalyzed Combat Drone Bay | -6/Data Miner | Free Lgt. Regenerative Plating | -6/Data Miner | Free Cld. Gravmag System | -6/Data Miner | Free Prc. Matter Filter | -6/Data Miner | Free Cld. Plasma Rifle | -6/Data Miner | Free Hvy. Siege Treads | -6/Data Miner | Free Adv. Power Amplifier | -6/Data Miner | Free Railgun | -6/Data Miner | Free Imp. Gyrokinetic Inverter | -6/Data Miner | Free Hvy. Linear Accelerator | -6/Data Miner | Free Adv. Force Field | -5/Factory | Hacked Exp. Signal Interpreter | -4/Factory | Hacked Cmb. Linear Gravjet | -4/Factory | Hacked Exp. Force Field | -4/Factory | Scanalyzed Exp. Heat Sink | -4/Zhirov | Free Assault Drone Bay | -4/Zhirov | Free Imp. Arc Thrower | -4/Zhirov | Free Exp. Optical Array | -4/Zhirov | Free Robot Schematics ------------------ G-47 Trooper | -7/Factory | Hacked Y-54 Guardian | -7/Factory | Hacked Y-45 Defender | -7/Zion | Archive L-41 Fighter | -7/Zion | Archive H-77 Assassin | -7/Zion | Archive X-67 Chaingunner | -6/Data Miner | Free R-10 Processor | -6/Data Miner | Free A-27 Freighter | -6/Data Miner | Free A-15 Conveyor | -6/Data Miner | Free Fabricated ------------ Y-54 Guardian | x2 | -7/Factory | Preloaded Imp. Antigrav System | x2 | -7/Factory | Preloaded Lgt. Regenerative Plating | x1 | -5/Factory Lrn. Sensor Array | x1 | -4/Factory Exp. Force Field | x1 | -4/Factory Alien Tech Used ----------------- Core Expander Integrated Reactor Sigix Broadsword Core Stripper Integrity Redistributor LRC Insulator LRC Boosters Core Regenerator Subatomic Replicator Achievements -------------- None Challenges ------------ None Game ------ Seed SchematicSwordSink Manual? 0 Play Time 07:50:37 Cumulative 860.7 hours Start 2022.04.17 @ 23:00:42 End 2022.04.23 @ 15:18:59 Sessions 13 Manual Loads 0 Difficulty Rogue Special Mode None Game No. 448 Rogue 448 Adventurer 0 Explorer 0 Win Type 0 Total 66 Types 37/5/13/6/1/1/3/0/0 Lore% 85 Gallery% 85 Achievement% 76 Wizard Run 0 Options --------- ASCII 0 Keyboard 0 Movement Mouse Keybinds 0 Fullscreen 1 Font 28/SmallcapsLarge Map View 72x54 Tactical HUD 1 Map Filters NONE Filters NONE Steam 0 RUN: 65eabf7d-ffa9-4696-b56c-190cfd239388